Workbook

Sheet Chart
A1: Lunar Cycle Jitter: Palmen-McKenna Calendar
A2: http://www.hermetic.ch/cal_stud/palmen/lunar13.htm
A3: ="Each lunar cycle contains "&MPC&" months ("&FMPC&" full, "&DMPC&" deficient) = "&DPC&" days = "&reducefraction(DPC,7,FALSE,FALSE,TRUE)&" weeks." -> Each lunar cycle contains 2418 months (1283 full, 1135 deficient) = 71405 days = 10200+5/7 weeks.
A4: Lunar years have 13 lunar months, even-numbered months have 29 days, odd-numbered
A5: months have 30 days, except that one day is removed from the last month of the lunar year if and only if
A6: (19 x year – 1) MOD 186 < 19. Each calendar cycle contains two 186-year lunar cycles = 372 lunar years.
A7: ="Mean month = "&"29+"&reducefraction(FMPC,MPC,FALSE,FALSE,TRUE)&" days = 29d 12h 44m and "&reducefraction(240*(360*FMPC-191*MPC),MPC,FALSE,FALSE,TRUE)&" seconds" -> Mean month = 29+1283/2418 days = 29d 12h 44m and 4+68/403 seconds
A8: ="or approximately 29"&MID(FMPC/MPC,2,20)&" days = 29d 12h 44m and "&ROUND(240*(360*FMPC-191*MPC)/MPC,6)&" seconds." -> or approximately 29.530603804797353 days = 29d 12h 44m and 4.168734 seconds.
A9: ="Duration per ''Part'' = 1/"&MPC&" day = "&reducefraction(24,MPC,FALSE,FALSE,TRUE)&" hour = "&reducefraction(1440,MPC,FALSE,FALSE,TRUE)&" minutes = "&reducefraction(86400,MPC,FALSE,FALSE,TRUE)&" seconds; one hour = "&reducefraction(MPC,24,FALSE,FALSE,TRUE)&" parts." -> Duration per ''Part'' = 1/2418 day = 4/403 hour = 240/403 minutes = 35+295/403 seconds; one hour = 100+3/4 parts.
Q11: FALSE
Q21: 13
Q22: Selected
Q23: Month
Q24: in Year
Q25: (1 to 13)
Q33: 2
Q34: Selected
Q35: Month
Q36: in Year
Q37: (1 to 13)

Sheet Data
A1: Lunar Cycle Jitter Evaluator
A2: by Dr. Irv Bromberg, University of Toronto, Canada
A3: http://individual.utoronto.ca/intervalmath/jitter/index.html | D3: Jitter | E3: (parts)
D4: =MAX(H:H) -> 3293 | E4: maximum | F4: =reducefraction(JitterMax*MPC,MPC,FALSE,FALSE,FALSE) -> 3293
A5: Months per Cycle (Parts per Day): | B5: 2418 | C5: months (parts) | D5: =MIN(H:H) -> -1135 | E5: minimum | F5: =reducefraction(JitterMin*MPC,MPC,FALSE,FALSE,FALSE) -> –(1135)
A6: 30-day Months per Cycle: | B6: 1283 | C6: months | D6: =D4-D5 -> 4428 | E6: range | F6: =reducefraction(JitterRange*MPC,MPC,FALSE,FALSE,FALSE) -> 4428
A7: 29-day Months per Cycle: | B7: =MPC-FMPC -> 1135 | C7: months | D7: ="Jitter range = "&F6&" parts = "&reducefraction(F6*24,MPC,FALSE,FALSE,FALSE)&" hours" -> Jitter range = 4428 parts = 43 + 383 / 403 hours
A8: Days per Cycle (Parts per Month): | B8: =29*MPC+FMPC -> 71405 | C8: days (parts)
D9: Limits for Chart:
A10: Mean Month: | B10: ="29 + "&reducefraction(FMPC,MPC,FALSE,FALSE,FALSE) -> 29 + 1283 / 2418 | C10: days | D10: x | E10: y | F10: Hours
A11: Mean Month >29d: | B11: =FMPC/MPC -> 0.530603804797353 | C11: days | D11: =A21 -> 1 | E11: =JitterMax -> 3293 | F11: =E11*24/MPC -> 32.68486352
A12: Mean Month >29d 12h 44m: | B12: =reducefraction(240*(360*FMPC-191*MPC),MPC,FALSE,FALSE,TRUE) -> 4+68/403 | C12: seconds | D12: =D11+MPC*2 -> 4837 | E12: =E11 -> 3293 | F12: =E12*24/MPC -> 32.68486352
A13: … or approximately: | B13: =240*(360*FMPC-191*MPC)/MPC -> 4.168734491 | C13: seconds
D14: =D11 -> 1 | E14: 0
D15: =D12 -> 4837 | E15: 0
D17: =A21 -> 1 | E17: =JitterMin -> -1135 | F17: =E17*24/MPC -> -11.26550868
A18: Duration per Part: | B18: =reducefraction(1440,MPC,FALSE,FALSE,FALSE) -> 240 / 403 | C18: minutes | D18: =D12 -> 4837 | E18: =E17 -> -1135 | F18: =E18*24/MPC -> -11.26550868
A20: Month in Cycle | B20: Lunar Year | C20: Month in Year | D20: Short Month? | E20: Month Length | F20: New Month Moment | G20: Elapsed | H20: Difference
A21: 1 | B21: 1 | C21: 1 | D21: =AND(C21=13,MOD(19*B21-1,186)<19) -> FALSE | E21: =IF(MOD(C21,2)=1,30,29)-IF(D21,1,0) -> 30 | F21: 0 | G21: 0 | H21: =F21-G21 -> 0
A22: =A21+1 -> 2 | B22: =IF(C22=1,B21+1,B21) -> 1 | C22: =IF(C21=13,1,C21+1) -> 2 | D22: =AND(C22=13,MOD(19*B22-1,186)<19) -> FALSE | E22: =IF(MOD(C22,2)=1,30,29)-IF(D22,1,0) -> 29 | F22: =F21+PPM -> 71405 | G22: =G21+E21*PPD -> 72540 | H22: -1135
A23: =A22+1 -> 3 | B23: 1 | C23: =IF(C22=13,1,C22+1) -> 3 | D23: FALSE | E23: 30 | F23: =F22+PPM -> 142810 | G23: 142662 | H23: 148
A24: 4 | B24: 1 | C24: 4 | D24: FALSE | E24: 29 | F24: 214215 | G24: 215202 | H24: -987
A25: 5 | B25: 1 | C25: 5 | D25: FALSE | E25: 30 | F25: 285620 | G25: 285324 | H25: 296
A26: 6 | B26: 1 | C26: 6 | D26: FALSE | E26: 29 | F26: 357025 | G26: 357864 | H26: -839
A27: 7 | B27: 1 | C27: 7 | D27: FALSE | E27: 30 | F27: 428430 | G27: 427986 | H27: 444
A28: 8 | B28: 1 | C28: 8 | D28: FALSE | E28: 29 | F28: 499835 | G28: 500526 | H28: -691
A29: 9 | B29: 1 | C29: 9 | D29: FALSE | E29: 30 | F29: 571240 | G29: 570648 | H29: 592
A30: 10 | B30: 1 | C30: 10 | D30: FALSE | E30: 29 | F30: 642645 | G30: 643188 | H30: -543
A31: 11 | B31: 1 | C31: 11 | D31: FALSE | E31: 30 | F31: 714050 | G31: 713310 | H31: 740
A32: 12 | B32: 1 | C32: 12 | D32: FALSE | E32: 29 | F32: 785455 | G32: 785850 | H32: -395
A33: 13 | B33: 1 | C33: 13 | D33: TRUE | E33: 29 | F33: 856860 | G33: 855972 | H33: 888
A34: 14 | B34: 2 | C34: 1 | D34: FALSE | E34: 30 | F34: 928265 | G34: 926094 | H34: 2171
A35: 15 | B35: 2 | C35: 2 | D35: FALSE | E35: 29 | F35: 999670 | G35: 998634 | H35: 1036
A36: 16 | B36: 2 | C36: 3 | D36: FALSE | E36: 30 | F36: 1071075 | G36: 1068756 | H36: 2319
A37: 17 | B37: 2 | C37: 4 | D37: FALSE | E37: 29 | F37: 1142480 | G37: 1141296 | H37: 1184
A38: 18 | B38: 2 | C38: 5 | D38: FALSE | E38: 30 | F38: 1213885 | G38: 1211418 | H38: 2467
A39: 19 | B39: 2 | C39: 6 | D39: FALSE | E39: 29 | F39: 1285290 | G39: 1283958 | H39: 1332
A40: 20 | B40: 2 | C40: 7 | D40: FALSE | E40: 30 | F40: 1356695 | G40: 1354080 | H40: 2615
A41: 21 | B41: 2 | C41: 8 | D41: FALSE | E41: 29 | F41: 1428100 | G41: 1426620 | H41: 1480
A42: 22 | B42: 2 | C42: 9 | D42: FALSE | E42: 30 | F42: 1499505 | G42: 1496742 | H42: 2763
A43: 23 | B43: 2 | C43: 10 | D43: FALSE | E43: 29 | F43: 1570910 | G43: 1569282 | H43: 1628
A44: 24 | B44: 2 | C44: 11 | D44: FALSE | E44: 30 | F44: 1642315 | G44: 1639404 | H44: 2911
A45: 25 | B45: 2 | C45: 12 | D45: FALSE | E45: 29 | F45: 1713720 | G45: 1711944 | H45: 1776
A46: 26 | B46: 2 | C46: 13 | D46: FALSE | E46: 30 | F46: 1785125 | G46: 1782066 | H46: 3059
A47: 27 | B47: 3 | C47: 1 | D47: FALSE | E47: 30 | F47: 1856530 | G47: 1854606 | H47: 1924
A48: 28 | B48: 3 | C48: 2 | D48: FALSE | E48: 29 | F48: 1927935 | G48: 1927146 | H48: 789
A49: 29 | B49: 3 | C49: 3 | D49: FALSE | E49: 30 | F49: 1999340 | G49: 1997268 | H49: 2072
A50: 30 | B50: 3 | C50: 4 | D50: FALSE | E50: 29 | F50: 2070745 | G50: 2069808 | H50: 937
A51: 31 | B51: 3 | C51: 5 | D51: FALSE | E51: 30 | F51: 2142150 | G51: 2139930 | H51: 2220
A52: 32 | B52: 3 | C52: 6 | D52: FALSE | E52: 29 | F52: 2213555 | G52: 2212470 | H52: 1085
A53: 33 | B53: 3 | C53: 7 | D53: FALSE | E53: 30 | F53: 2284960 | G53: 2282592 | H53: 2368
A54: 34 | B54: 3 | C54: 8 | D54: FALSE | E54: 29 | F54: 2356365 | G54: 2355132 | H54: 1233
A55: 35 | B55: 3 | C55: 9 | D55: FALSE | E55: 30 | F55: 2427770 | G55: 2425254 | H55: 2516
A56: =A55+1 -> 36 | B56: 3 | C56: 10 | D56: FALSE | E56: 29 | F56: 2499175 | G56: 2497794 | H56: 1381
A57: 37 | B57: 3 | C57: 11 | D57: FALSE | E57: 30 | F57: 2570580 | G57: 2567916 | H57: 2664
A58: 38 | B58: 3 | C58: 12 | D58: FALSE | E58: 29 | F58: 2641985 | G58: 2640456 | H58: 1529
A59: 39 | B59: 3 | C59: 13 | D59: FALSE | E59: 30 | F59: 2713390 | G59: 2710578 | H59: 2812
A60: 40 | B60: 4 | C60: 1 | D60: FALSE | E60: 30 | F60: 2784795 | G60: 2783118 | H60: 1677
A61: 41 | B61: 4 | C61: 2 | D61: FALSE | E61: 29 | F61: 2856200 | G61: 2855658 | H61: 542
A62: 42 | B62: 4 | C62: 3 | D62: FALSE | E62: 30 | F62: 2927605 | G62: 2925780 | H62: 1825
A63: 43 | B63: 4 | C63: 4 | D63: FALSE | E63: 29 | F63: 2999010 | G63: 2998320 | H63: 690
A64: 44 | B64: 4 | C64: 5 | D64: FALSE | E64: 30 | F64: 3070415 | G64: 3068442 | H64: 1973
A65: 45 | B65: 4 | C65: 6 | D65: FALSE | E65: 29 | F65: 3141820 | G65: 3140982 | H65: 838
A66: 46 | B66: 4 | C66: 7 | D66: FALSE | E66: 30 | F66: 3213225 | G66: 3211104 | H66: 2121
A67: 47 | B67: 4 | C67: 8 | D67: FALSE | E67: 29 | F67: 3284630 | G67: 3283644 | H67: 986
A68: 48 | B68: 4 | C68: 9 | D68: FALSE | E68: 30 | F68: 3356035 | G68: 3353766 | H68: 2269
A69: 49 | B69: 4 | C69: 10 | D69: FALSE | E69: 29 | F69: 3427440 | G69: 3426306 | H69: 1134
A70: 50 | B70: 4 | C70: 11 | D70: FALSE | E70: 30 | F70: 3498845 | G70: 3496428 | H70: 2417
A71: 51 | B71: 4 | C71: 12 | D71: FALSE | E71: 29 | F71: 3570250 | G71: 3568968 | H71: 1282
A72: 52 | B72: 4 | C72: 13 | D72: FALSE | E72: 30 | F72: 3641655 | G72: 3639090 | H72: 2565
A73: 53 | B73: 5 | C73: 1 | D73: FALSE | E73: 30 | F73: 3713060 | G73: 3711630 | H73: 1430
A74: 54 | B74: 5 | C74: 2 | D74: FALSE | E74: 29 | F74: 3784465 | G74: 3784170 | H74: 295
A75: 55 | B75: 5 | C75: 3 | D75: FALSE | E75: 30 | F75: 3855870 | G75: 3854292 | H75: 1578
A76: 56 | B76: 5 | C76: 4 | D76: FALSE | E76: 29 | F76: 3927275 | G76: 3926832 | H76: 443
A77: 57 | B77: 5 | C77: 5 | D77: FALSE | E77: 30 | F77: 3998680 | G77: 3996954 | H77: 1726
A78: 58 | B78: 5 | C78: 6 | D78: FALSE | E78: 29 | F78: 4070085 | G78: 4069494 | H78: 591
A79: 59 | B79: 5 | C79: 7 | D79: FALSE | E79: 30 | F79: 4141490 | G79: 4139616 | H79: 1874
A80: 60 | B80: 5 | C80: 8 | D80: FALSE | E80: 29 | F80: 4212895 | G80: 4212156 | H80: 739
A81: 61 | B81: 5 | C81: 9 | D81: FALSE | E81: 30 | F81: 4284300 | G81: 4282278 | H81: 2022
A82: 62 | B82: 5 | C82: 10 | D82: FALSE | E82: 29 | F82: 4355705 | G82: 4354818 | H82: 887
A83: 63 | B83: 5 | C83: 11 | D83: FALSE | E83: 30 | F83: 4427110 | G83: 4424940 | H83: 2170
A84: 64 | B84: 5 | C84: 12 | D84: FALSE | E84: 29 | F84: 4498515 | G84: 4497480 | H84: 1035
A85: 65 | B85: 5 | C85: 13 | D85: FALSE | E85: 30 | F85: 4569920 | G85: 4567602 | H85: =F85-G85 -> 2318
A86: 66 | B86: =IF(C86=1,B85+1,B85) -> 6 | C86: 1 | D86: =AND(C86=13,MOD(19*B86-1,186)<19) -> FALSE | E86: =IF(MOD(C86,2)=1,30,29)-IF(D86,1,0) -> 30 | F86: 4641325 | G86: =G85+E85*PPD -> 4640142 | H86: 1183
A87: 67 | B87: 6 | C87: =IF(C86=13,1,C86+1) -> 2 | D87: FALSE | E87: 29 | F87: =F86+PPM -> 4712730 | G87: 4712682 | H87: 48
A88: 68 | B88: 6 | C88: 3 | D88: FALSE | E88: 30 | F88: 4784135 | G88: 4782804 | H88: 1331
A89: 69 | B89: 6 | C89: 4 | D89: FALSE | E89: 29 | F89: 4855540 | G89: 4855344 | H89: 196
A90: 70 | B90: 6 | C90: 5 | D90: FALSE | E90: 30 | F90: 4926945 | G90: 4925466 | H90: 1479
A91: 71 | B91: 6 | C91: 6 | D91: FALSE | E91: 29 | F91: 4998350 | G91: 4998006 | H91: 344
A92: 72 | B92: 6 | C92: 7 | D92: FALSE | E92: 30 | F92: 5069755 | G92: 5068128 | H92: 1627
A93: 73 | B93: 6 | C93: 8 | D93: FALSE | E93: 29 | F93: 5141160 | G93: 5140668 | H93: 492
A94: 74 | B94: 6 | C94: 9 | D94: FALSE | E94: 30 | F94: 5212565 | G94: 5210790 | H94: 1775
A95: 75 | B95: 6 | C95: 10 | D95: FALSE | E95: 29 | F95: 5283970 | G95: 5283330 | H95: 640
A96: 76 | B96: 6 | C96: 11 | D96: FALSE | E96: 30 | F96: 5355375 | G96: 5353452 | H96: 1923
A97: 77 | B97: 6 | C97: 12 | D97: FALSE | E97: 29 | F97: 5426780 | G97: 5425992 | H97: 788
A98: 78 | B98: 6 | C98: 13 | D98: FALSE | E98: 30 | F98: 5498185 | G98: 5496114 | H98: 2071
A99: 79 | B99: 7 | C99: 1 | D99: FALSE | E99: 30 | F99: 5569590 | G99: 5568654 | H99: 936
A100: 80 | B100: 7 | C100: 2 | D100: FALSE | E100: 29 | F100: 5640995 | G100: 5641194 | H100: -199
A101: 81 | B101: 7 | C101: 3 | D101: FALSE | E101: 30 | F101: 5712400 | G101: 5711316 | H101: 1084
A102: 82 | B102: 7 | C102: 4 | D102: FALSE | E102: 29 | F102: 5783805 | G102: 5783856 | H102: -51
A103: 83 | B103: 7 | C103: 5 | D103: FALSE | E103: 30 | F103: 5855210 | G103: 5853978 | H103: 1232
A104: 84 | B104: 7 | C104: 6 | D104: FALSE | E104: 29 | F104: 5926615 | G104: 5926518 | H104: 97
A105: 85 | B105: 7 | C105: 7 | D105: FALSE | E105: 30 | F105: 5998020 | G105: 5996640 | H105: 1380
A106: 86 | B106: 7 | C106: 8 | D106: FALSE | E106: 29 | F106: 6069425 | G106: 6069180 | H106: 245
A107: 87 | B107: 7 | C107: 9 | D107: FALSE | E107: 30 | F107: 6140830 | G107: 6139302 | H107: 1528
A108: 88 | B108: 7 | C108: 10 | D108: FALSE | E108: 29 | F108: 6212235 | G108: 6211842 | H108: 393
A109: 89 | B109: 7 | C109: 11 | D109: FALSE | E109: 30 | F109: 6283640 | G109: 6281964 | H109: 1676
A110: 90 | B110: 7 | C110: 12 | D110: FALSE | E110: 29 | F110: 6355045 | G110: 6354504 | H110: 541
A111: 91 | B111: 7 | C111: 13 | D111: FALSE | E111: 30 | F111: 6426450 | G111: 6424626 | H111: 1824
A112: 92 | B112: 8 | C112: 1 | D112: FALSE | E112: 30 | F112: 6497855 | G112: 6497166 | H112: 689
A113: 93 | B113: 8 | C113: 2 | D113: FALSE | E113: 29 | F113: 6569260 | G113: 6569706 | H113: -446
A114: 94 | B114: 8 | C114: 3 | D114: FALSE | E114: 30 | F114: 6640665 | G114: 6639828 | H114: 837
A115: 95 | B115: 8 | C115: 4 | D115: FALSE | E115: 29 | F115: 6712070 | G115: 6712368 | H115: -298
A116: 96 | B116: 8 | C116: 5 | D116: FALSE | E116: 30 | F116: 6783475 | G116: 6782490 | H116: 985
A117: 97 | B117: 8 | C117: 6 | D117: FALSE | E117: 29 | F117: 6854880 | G117: 6855030 | H117: -150
A118: 98 | B118: 8 | C118: 7 | D118: FALSE | E118: 30 | F118: 6926285 | G118: 6925152 | H118: 1133
A119: 99 | B119: 8 | C119: 8 | D119: FALSE | E119: 29 | F119: 6997690 | G119: 6997692 | H119: -2
A120: =A119+1 -> 100 | B120: 8 | C120: 9 | D120: FALSE | E120: 30 | F120: 7069095 | G120: 7067814 | H120: 1281
A121: 101 | B121: 8 | C121: 10 | D121: FALSE | E121: 29 | F121: 7140500 | G121: 7140354 | H121: 146
A122: 102 | B122: 8 | C122: 11 | D122: FALSE | E122: 30 | F122: 7211905 | G122: 7210476 | H122: 1429
A123: 103 | B123: 8 | C123: 12 | D123: FALSE | E123: 29 | F123: 7283310 | G123: 7283016 | H123: 294
A124: 104 | B124: 8 | C124: 13 | D124: FALSE | E124: 30 | F124: 7354715 | G124: 7353138 | H124: 1577
A125: 105 | B125: 9 | C125: 1 | D125: FALSE | E125: 30 | F125: 7426120 | G125: 7425678 | H125: 442
A126: 106 | B126: 9 | C126: 2 | D126: FALSE | E126: 29 | F126: 7497525 | G126: 7498218 | H126: -693
A127: 107 | B127: 9 | C127: 3 | D127: FALSE | E127: 30 | F127: 7568930 | G127: 7568340 | H127: 590
A128: 108 | B128: 9 | C128: 4 | D128: FALSE | E128: 29 | F128: 7640335 | G128: 7640880 | H128: -545
A129: 109 | B129: 9 | C129: 5 | D129: FALSE | E129: 30 | F129: 7711740 | G129: 7711002 | H129: 738
A130: 110 | B130: 9 | C130: 6 | D130: FALSE | E130: 29 | F130: 7783145 | G130: 7783542 | H130: -397
A131: 111 | B131: 9 | C131: 7 | D131: FALSE | E131: 30 | F131: 7854550 | G131: 7853664 | H131: 886
A132: 112 | B132: 9 | C132: 8 | D132: FALSE | E132: 29 | F132: 7925955 | G132: 7926204 | H132: -249
A133: 113 | B133: 9 | C133: 9 | D133: FALSE | E133: 30 | F133: 7997360 | G133: 7996326 | H133: 1034
A134: 114 | B134: 9 | C134: 10 | D134: FALSE | E134: 29 | F134: 8068765 | G134: 8068866 | H134: -101
A135: 115 | B135: 9 | C135: 11 | D135: FALSE | E135: 30 | F135: 8140170 | G135: 8138988 | H135: 1182
A136: 116 | B136: 9 | C136: 12 | D136: FALSE | E136: 29 | F136: 8211575 | G136: 8211528 | H136: 47
A137: 117 | B137: 9 | C137: 13 | D137: FALSE | E137: 30 | F137: 8282980 | G137: 8281650 | H137: 1330
A138: 118 | B138: 10 | C138: 1 | D138: FALSE | E138: 30 | F138: 8354385 | G138: 8354190 | H138: 195
A139: 119 | B139: 10 | C139: 2 | D139: FALSE | E139: 29 | F139: 8425790 | G139: 8426730 | H139: -940
A140: 120 | B140: 10 | C140: 3 | D140: FALSE | E140: 30 | F140: 8497195 | G140: 8496852 | H140: 343
A141: 121 | B141: 10 | C141: 4 | D141: FALSE | E141: 29 | F141: 8568600 | G141: 8569392 | H141: -792
A142: 122 | B142: 10 | C142: 5 | D142: FALSE | E142: 30 | F142: 8640005 | G142: 8639514 | H142: 491
A143: 123 | B143: 10 | C143: 6 | D143: FALSE | E143: 29 | F143: 8711410 | G143: 8712054 | H143: -644
A144: 124 | B144: 10 | C144: 7 | D144: FALSE | E144: 30 | F144: 8782815 | G144: 8782176 | H144: 639
A145: 125 | B145: 10 | C145: 8 | D145: FALSE | E145: 29 | F145: 8854220 | G145: 8854716 | H145: -496
A146: 126 | B146: 10 | C146: 9 | D146: FALSE | E146: 30 | F146: 8925625 | G146: 8924838 | H146: 787
A147: 127 | B147: 10 | C147: 10 | D147: FALSE | E147: 29 | F147: 8997030 | G147: 8997378 | H147: -348
A148: 128 | B148: 10 | C148: 11 | D148: FALSE | E148: 30 | F148: 9068435 | G148: 9067500 | H148: 935
A149: 129 | B149: 10 | C149: 12 | D149: FALSE | E149: 29 | F149: 9139840 | G149: 9140040 | H149: =F149-G149 -> -200
A150: 130 | B150: =IF(C150=1,B149+1,B149) -> 10 | C150: 13 | D150: =AND(C150=13,MOD(19*B150-1,186)<19) -> TRUE | E150: =IF(MOD(C150,2)=1,30,29)-IF(D150,1,0) -> 29 | F150: 9211245 | G150: =G149+E149*PPD -> 9210162 | H150: 1083
A151: 131 | B151: 11 | C151: =IF(C150=13,1,C150+1) -> 1 | D151: FALSE | E151: 30 | F151: =F150+PPM -> 9282650 | G151: 9280284 | H151: 2366
A152: 132 | B152: 11 | C152: 2 | D152: FALSE | E152: 29 | F152: 9354055 | G152: 9352824 | H152: 1231
A153: 133 | B153: 11 | C153: 3 | D153: FALSE | E153: 30 | F153: 9425460 | G153: 9422946 | H153: 2514
A154: 134 | B154: 11 | C154: 4 | D154: FALSE | E154: 29 | F154: 9496865 | G154: 9495486 | H154: 1379
A155: 135 | B155: 11 | C155: 5 | D155: FALSE | E155: 30 | F155: 9568270 | G155: 9565608 | H155: 2662
A156: 136 | B156: 11 | C156: 6 | D156: FALSE | E156: 29 | F156: 9639675 | G156: 9638148 | H156: 1527
A157: 137 | B157: 11 | C157: 7 | D157: FALSE | E157: 30 | F157: 9711080 | G157: 9708270 | H157: 2810
A158: 138 | B158: 11 | C158: 8 | D158: FALSE | E158: 29 | F158: 9782485 | G158: 9780810 | H158: 1675
A159: 139 | B159: 11 | C159: 9 | D159: FALSE | E159: 30 | F159: 9853890 | G159: 9850932 | H159: 2958
A160: 140 | B160: 11 | C160: 10 | D160: FALSE | E160: 29 | F160: 9925295 | G160: 9923472 | H160: 1823
A161: 141 | B161: 11 | C161: 11 | D161: FALSE | E161: 30 | F161: 9996700 | G161: 9993594 | H161: 3106
A162: 142 | B162: 11 | C162: 12 | D162: FALSE | E162: 29 | F162: 10068105 | G162: 10066134 | H162: 1971
A163: 143 | B163: 11 | C163: 13 | D163: FALSE | E163: 30 | F163: 10139510 | G163: 10136256 | H163: 3254
A164: 144 | B164: 12 | C164: 1 | D164: FALSE | E164: 30 | F164: 10210915 | G164: 10208796 | H164: 2119
A165: 145 | B165: 12 | C165: 2 | D165: FALSE | E165: 29 | F165: 10282320 | G165: 10281336 | H165: 984
A166: 146 | B166: 12 | C166: 3 | D166: FALSE | E166: 30 | F166: 10353725 | G166: 10351458 | H166: 2267
A167: 147 | B167: 12 | C167: 4 | D167: FALSE | E167: 29 | F167: 10425130 | G167: 10423998 | H167: 1132
A168: 148 | B168: 12 | C168: 5 | D168: FALSE | E168: 30 | F168: 10496535 | G168: 10494120 | H168: 2415
A169: 149 | B169: 12 | C169: 6 | D169: FALSE | E169: 29 | F169: 10567940 | G169: 10566660 | H169: 1280
A170: 150 | B170: 12 | C170: 7 | D170: FALSE | E170: 30 | F170: 10639345 | G170: 10636782 | H170: 2563
A171: 151 | B171: 12 | C171: 8 | D171: FALSE | E171: 29 | F171: 10710750 | G171: 10709322 | H171: 1428
A172: 152 | B172: 12 | C172: 9 | D172: FALSE | E172: 30 | F172: 10782155 | G172: 10779444 | H172: 2711
A173: 153 | B173: 12 | C173: 10 | D173: FALSE | E173: 29 | F173: 10853560 | G173: 10851984 | H173: 1576
A174: 154 | B174: 12 | C174: 11 | D174: FALSE | E174: 30 | F174: 10924965 | G174: 10922106 | H174: 2859
A175: 155 | B175: 12 | C175: 12 | D175: FALSE | E175: 29 | F175: 10996370 | G175: 10994646 | H175: 1724
A176: 156 | B176: 12 | C176: 13 | D176: FALSE | E176: 30 | F176: 11067775 | G176: 11064768 | H176: 3007
A177: 157 | B177: 13 | C177: 1 | D177: FALSE | E177: 30 | F177: 11139180 | G177: 11137308 | H177: 1872
A178: 158 | B178: 13 | C178: 2 | D178: FALSE | E178: 29 | F178: 11210585 | G178: 11209848 | H178: 737
A179: 159 | B179: 13 | C179: 3 | D179: FALSE | E179: 30 | F179: 11281990 | G179: 11279970 | H179: 2020
A180: 160 | B180: 13 | C180: 4 | D180: FALSE | E180: 29 | F180: 11353395 | G180: 11352510 | H180: 885
A181: 161 | B181: 13 | C181: 5 | D181: FALSE | E181: 30 | F181: 11424800 | G181: 11422632 | H181: 2168
A182: 162 | B182: 13 | C182: 6 | D182: FALSE | E182: 29 | F182: 11496205 | G182: 11495172 | H182: 1033
A183: 163 | B183: 13 | C183: 7 | D183: FALSE | E183: 30 | F183: 11567610 | G183: 11565294 | H183: 2316
A184: =A183+1 -> 164 | B184: 13 | C184: 8 | D184: FALSE | E184: 29 | F184: 11639015 | G184: 11637834 | H184: 1181
A185: 165 | B185: 13 | C185: 9 | D185: FALSE | E185: 30 | F185: 11710420 | G185: 11707956 | H185: 2464
A186: 166 | B186: 13 | C186: 10 | D186: FALSE | E186: 29 | F186: 11781825 | G186: 11780496 | H186: 1329
A187: 167 | B187: 13 | C187: 11 | D187: FALSE | E187: 30 | F187: 11853230 | G187: 11850618 | H187: 2612
A188: 168 | B188: 13 | C188: 12 | D188: FALSE | E188: 29 | F188: 11924635 | G188: 11923158 | H188: 1477
A189: 169 | B189: 13 | C189: 13 | D189: FALSE | E189: 30 | F189: 11996040 | G189: 11993280 | H189: 2760
A190: 170 | B190: 14 | C190: 1 | D190: FALSE | E190: 30 | F190: 12067445 | G190: 12065820 | H190: 1625
A191: 171 | B191: 14 | C191: 2 | D191: FALSE | E191: 29 | F191: 12138850 | G191: 12138360 | H191: 490
A192: 172 | B192: 14 | C192: 3 | D192: FALSE | E192: 30 | F192: 12210255 | G192: 12208482 | H192: 1773
A193: 173 | B193: 14 | C193: 4 | D193: FALSE | E193: 29 | F193: 12281660 | G193: 12281022 | H193: 638
A194: 174 | B194: 14 | C194: 5 | D194: FALSE | E194: 30 | F194: 12353065 | G194: 12351144 | H194: 1921
A195: 175 | B195: 14 | C195: 6 | D195: FALSE | E195: 29 | F195: 12424470 | G195: 12423684 | H195: 786
A196: 176 | B196: 14 | C196: 7 | D196: FALSE | E196: 30 | F196: 12495875 | G196: 12493806 | H196: 2069
A197: 177 | B197: 14 | C197: 8 | D197: FALSE | E197: 29 | F197: 12567280 | G197: 12566346 | H197: 934
A198: 178 | B198: 14 | C198: 9 | D198: FALSE | E198: 30 | F198: 12638685 | G198: 12636468 | H198: 2217
A199: 179 | B199: 14 | C199: 10 | D199: FALSE | E199: 29 | F199: 12710090 | G199: 12709008 | H199: 1082
A200: 180 | B200: 14 | C200: 11 | D200: FALSE | E200: 30 | F200: 12781495 | G200: 12779130 | H200: 2365
A201: 181 | B201: 14 | C201: 12 | D201: FALSE | E201: 29 | F201: 12852900 | G201: 12851670 | H201: 1230
A202: 182 | B202: 14 | C202: 13 | D202: FALSE | E202: 30 | F202: 12924305 | G202: 12921792 | H202: 2513
... 4667 more rows

Sheet Rules
A1: lunar year has 13 months
A2: odd-numbered months have 30 days, even numbered months have 29 days
A3: so common years have 7 full months and 6 deficient months
A4: length of common year = | B4: =6*29+7*30 -> 384 | C4: days
A5: in short years remove one day from 13th month = 383 days
A6: A lunar year is short if it has two occurrences of either of:
A7: -- Solar date Month 1 Date 1 (new solar year) OR
A8: -- Solar date Month 7 Date 1 (half solar year)
A9: A lunar year y is short if and only if (19*y-1) mod 186 < 19

Sheet Years
A1: Month in Cycle | B1: Lunar Year | C1: New Year Moment | D1: Elapsed | E1: Difference
A2: =StartMonth -> 13 | B2: 1 | C2: =(A2-1)*PPM -> 856860 | D2: =LOOKUP(A2,Data!A$21:A$4869,Data!G$21:G$4869) -> 855972 | E2: =C2-D2 -> 888
A3: =A2+13 -> 26 | B3: =B2+1 -> 2 | C3: =(A3-1)*PPM -> 1785125 | D3: =LOOKUP(A3,Data!A$21:A$4869,Data!G$21:G$4869) -> 1782066 | E3: =C3-D3 -> 3059
A4: =A3+13 -> 39 | B4: =B3+1 -> 3 | C4: 2713390 | D4: =LOOKUP(A4,Data!A$21:A$4869,Data!G$21:G$4869) -> 2710578 | E4: 2812
A5: 52 | B5: 4 | C5: 3641655 | D5: =LOOKUP(A5,Data!A$21:A$4869,Data!G$21:G$4869) -> 3639090 | E5: 2565
A6: 65 | B6: 5 | C6: 4569920 | D6: =LOOKUP(A6,Data!A$21:A$4869,Data!G$21:G$4869) -> 4567602 | E6: 2318
A7: 78 | B7: 6 | C7: 5498185 | D7: =LOOKUP(A7,Data!A$21:A$4869,Data!G$21:G$4869) -> 5496114 | E7: 2071
A8: 91 | B8: 7 | C8: 6426450 | D8: =LOOKUP(A8,Data!A$21:A$4869,Data!G$21:G$4869) -> 6424626 | E8: 1824
A9: 104 | B9: 8 | C9: 7354715 | D9: =LOOKUP(A9,Data!A$21:A$4869,Data!G$21:G$4869) -> 7353138 | E9: 1577
A10: 117 | B10: 9 | C10: 8282980 | D10: =LOOKUP(A10,Data!A$21:A$4869,Data!G$21:G$4869) -> 8281650 | E10: 1330
A11: 130 | B11: 10 | C11: 9211245 | D11: =LOOKUP(A11,Data!A$21:A$4869,Data!G$21:G$4869) -> 9210162 | E11: 1083
A12: 143 | B12: 11 | C12: 10139510 | D12: =LOOKUP(A12,Data!A$21:A$4869,Data!G$21:G$4869) -> 10136256 | E12: 3254
A13: 156 | B13: 12 | C13: 11067775 | D13: =LOOKUP(A13,Data!A$21:A$4869,Data!G$21:G$4869) -> 11064768 | E13: 3007
A14: 169 | B14: 13 | C14: 11996040 | D14: =LOOKUP(A14,Data!A$21:A$4869,Data!G$21:G$4869) -> 11993280 | E14: 2760
A15: 182 | B15: 14 | C15: 12924305 | D15: =LOOKUP(A15,Data!A$21:A$4869,Data!G$21:G$4869) -> 12921792 | E15: 2513
A16: 195 | B16: 15 | C16: 13852570 | D16: =LOOKUP(A16,Data!A$21:A$4869,Data!G$21:G$4869) -> 13850304 | E16: 2266
A17: 208 | B17: 16 | C17: 14780835 | D17: =LOOKUP(A17,Data!A$21:A$4869,Data!G$21:G$4869) -> 14778816 | E17: 2019
A18: 221 | B18: 17 | C18: 15709100 | D18: =LOOKUP(A18,Data!A$21:A$4869,Data!G$21:G$4869) -> 15707328 | E18: 1772
A19: 234 | B19: 18 | C19: 16637365 | D19: =LOOKUP(A19,Data!A$21:A$4869,Data!G$21:G$4869) -> 16635840 | E19: 1525
A20: 247 | B20: 19 | C20: 17565630 | D20: =LOOKUP(A20,Data!A$21:A$4869,Data!G$21:G$4869) -> 17564352 | E20: 1278
A21: 260 | B21: 20 | C21: 18493895 | D21: =LOOKUP(A21,Data!A$21:A$4869,Data!G$21:G$4869) -> 18492864 | E21: 1031
A22: 273 | B22: 21 | C22: 19422160 | D22: =LOOKUP(A22,Data!A$21:A$4869,Data!G$21:G$4869) -> 19418958 | E22: 3202
A23: 286 | B23: 22 | C23: 20350425 | D23: =LOOKUP(A23,Data!A$21:A$4869,Data!G$21:G$4869) -> 20347470 | E23: 2955
A24: 299 | B24: 23 | C24: 21278690 | D24: =LOOKUP(A24,Data!A$21:A$4869,Data!G$21:G$4869) -> 21275982 | E24: 2708
A25: 312 | B25: 24 | C25: 22206955 | D25: =LOOKUP(A25,Data!A$21:A$4869,Data!G$21:G$4869) -> 22204494 | E25: 2461
A26: 325 | B26: 25 | C26: 23135220 | D26: =LOOKUP(A26,Data!A$21:A$4869,Data!G$21:G$4869) -> 23133006 | E26: 2214
A27: 338 | B27: 26 | C27: 24063485 | D27: =LOOKUP(A27,Data!A$21:A$4869,Data!G$21:G$4869) -> 24061518 | E27: 1967
A28: 351 | B28: 27 | C28: 24991750 | D28: =LOOKUP(A28,Data!A$21:A$4869,Data!G$21:G$4869) -> 24990030 | E28: 1720
A29: 364 | B29: 28 | C29: 25920015 | D29: =LOOKUP(A29,Data!A$21:A$4869,Data!G$21:G$4869) -> 25918542 | E29: 1473
A30: 377 | B30: 29 | C30: 26848280 | D30: =LOOKUP(A30,Data!A$21:A$4869,Data!G$21:G$4869) -> 26847054 | E30: 1226
A31: 390 | B31: 30 | C31: 27776545 | D31: =LOOKUP(A31,Data!A$21:A$4869,Data!G$21:G$4869) -> 27775566 | E31: 979
A32: 403 | B32: 31 | C32: 28704810 | D32: =LOOKUP(A32,Data!A$21:A$4869,Data!G$21:G$4869) -> 28701660 | E32: 3150
A33: 416 | B33: 32 | C33: 29633075 | D33: =LOOKUP(A33,Data!A$21:A$4869,Data!G$21:G$4869) -> 29630172 | E33: 2903
A34: 429 | B34: 33 | C34: 30561340 | D34: =LOOKUP(A34,Data!A$21:A$4869,Data!G$21:G$4869) -> 30558684 | E34: 2656
A35: 442 | B35: 34 | C35: 31489605 | D35: =LOOKUP(A35,Data!A$21:A$4869,Data!G$21:G$4869) -> 31487196 | E35: 2409
A36: 455 | B36: 35 | C36: 32417870 | D36: =LOOKUP(A36,Data!A$21:A$4869,Data!G$21:G$4869) -> 32415708 | E36: 2162
A37: 468 | B37: 36 | C37: 33346135 | D37: =LOOKUP(A37,Data!A$21:A$4869,Data!G$21:G$4869) -> 33344220 | E37: 1915
A38: 481 | B38: 37 | C38: 34274400 | D38: =LOOKUP(A38,Data!A$21:A$4869,Data!G$21:G$4869) -> 34272732 | E38: 1668
A39: 494 | B39: 38 | C39: 35202665 | D39: =LOOKUP(A39,Data!A$21:A$4869,Data!G$21:G$4869) -> 35201244 | E39: 1421
A40: 507 | B40: 39 | C40: 36130930 | D40: =LOOKUP(A40,Data!A$21:A$4869,Data!G$21:G$4869) -> 36129756 | E40: 1174
A41: 520 | B41: 40 | C41: 37059195 | D41: =LOOKUP(A41,Data!A$21:A$4869,Data!G$21:G$4869) -> 37058268 | E41: 927
A42: 533 | B42: 41 | C42: 37987460 | D42: =LOOKUP(A42,Data!A$21:A$4869,Data!G$21:G$4869) -> 37984362 | E42: 3098
A43: 546 | B43: 42 | C43: 38915725 | D43: =LOOKUP(A43,Data!A$21:A$4869,Data!G$21:G$4869) -> 38912874 | E43: 2851
A44: 559 | B44: 43 | C44: 39843990 | D44: =LOOKUP(A44,Data!A$21:A$4869,Data!G$21:G$4869) -> 39841386 | E44: 2604
A45: 572 | B45: 44 | C45: 40772255 | D45: =LOOKUP(A45,Data!A$21:A$4869,Data!G$21:G$4869) -> 40769898 | E45: 2357
A46: 585 | B46: 45 | C46: 41700520 | D46: =LOOKUP(A46,Data!A$21:A$4869,Data!G$21:G$4869) -> 41698410 | E46: 2110
A47: 598 | B47: 46 | C47: 42628785 | D47: =LOOKUP(A47,Data!A$21:A$4869,Data!G$21:G$4869) -> 42626922 | E47: 1863
A48: 611 | B48: 47 | C48: 43557050 | D48: =LOOKUP(A48,Data!A$21:A$4869,Data!G$21:G$4869) -> 43555434 | E48: 1616
A49: 624 | B49: 48 | C49: 44485315 | D49: =LOOKUP(A49,Data!A$21:A$4869,Data!G$21:G$4869) -> 44483946 | E49: 1369
A50: 637 | B50: 49 | C50: 45413580 | D50: =LOOKUP(A50,Data!A$21:A$4869,Data!G$21:G$4869) -> 45412458 | E50: 1122
A51: 650 | B51: 50 | C51: 46341845 | D51: =LOOKUP(A51,Data!A$21:A$4869,Data!G$21:G$4869) -> 46338552 | E51: 3293
A52: 663 | B52: 51 | C52: 47270110 | D52: =LOOKUP(A52,Data!A$21:A$4869,Data!G$21:G$4869) -> 47267064 | E52: 3046
A53: 676 | B53: 52 | C53: 48198375 | D53: =LOOKUP(A53,Data!A$21:A$4869,Data!G$21:G$4869) -> 48195576 | E53: 2799
A54: 689 | B54: 53 | C54: 49126640 | D54: =LOOKUP(A54,Data!A$21:A$4869,Data!G$21:G$4869) -> 49124088 | E54: 2552
A55: 702 | B55: 54 | C55: 50054905 | D55: =LOOKUP(A55,Data!A$21:A$4869,Data!G$21:G$4869) -> 50052600 | E55: 2305
A56: 715 | B56: 55 | C56: 50983170 | D56: =LOOKUP(A56,Data!A$21:A$4869,Data!G$21:G$4869) -> 50981112 | E56: 2058
A57: 728 | B57: 56 | C57: 51911435 | D57: =LOOKUP(A57,Data!A$21:A$4869,Data!G$21:G$4869) -> 51909624 | E57: 1811
A58: 741 | B58: 57 | C58: 52839700 | D58: =LOOKUP(A58,Data!A$21:A$4869,Data!G$21:G$4869) -> 52838136 | E58: 1564
A59: 754 | B59: 58 | C59: 53767965 | D59: =LOOKUP(A59,Data!A$21:A$4869,Data!G$21:G$4869) -> 53766648 | E59: 1317
A60: 767 | B60: 59 | C60: 54696230 | D60: =LOOKUP(A60,Data!A$21:A$4869,Data!G$21:G$4869) -> 54695160 | E60: 1070
A61: 780 | B61: 60 | C61: 55624495 | D61: =LOOKUP(A61,Data!A$21:A$4869,Data!G$21:G$4869) -> 55621254 | E61: 3241
A62: 793 | B62: 61 | C62: 56552760 | D62: =LOOKUP(A62,Data!A$21:A$4869,Data!G$21:G$4869) -> 56549766 | E62: 2994
A63: 806 | B63: 62 | C63: 57481025 | D63: =LOOKUP(A63,Data!A$21:A$4869,Data!G$21:G$4869) -> 57478278 | E63: 2747
A64: 819 | B64: 63 | C64: 58409290 | D64: =LOOKUP(A64,Data!A$21:A$4869,Data!G$21:G$4869) -> 58406790 | E64: 2500
A65: 832 | B65: 64 | C65: 59337555 | D65: =LOOKUP(A65,Data!A$21:A$4869,Data!G$21:G$4869) -> 59335302 | E65: 2253
A66: 845 | B66: 65 | C66: 60265820 | D66: =LOOKUP(A66,Data!A$21:A$4869,Data!G$21:G$4869) -> 60263814 | E66: =C66-D66 -> 2006
A67: 858 | B67: 66 | C67: =(A67-1)*PPM -> 61194085 | D67: =LOOKUP(A67,Data!A$21:A$4869,Data!G$21:G$4869) -> 61192326 | E67: 1759
A68: =A67+13 -> 871 | B68: =B67+1 -> 67 | C68: 62122350 | D68: =LOOKUP(A68,Data!A$21:A$4869,Data!G$21:G$4869) -> 62120838 | E68: 1512
A69: 884 | B69: 68 | C69: 63050615 | D69: =LOOKUP(A69,Data!A$21:A$4869,Data!G$21:G$4869) -> 63049350 | E69: 1265
A70: 897 | B70: 69 | C70: 63978880 | D70: =LOOKUP(A70,Data!A$21:A$4869,Data!G$21:G$4869) -> 63977862 | E70: 1018
A71: 910 | B71: 70 | C71: 64907145 | D71: =LOOKUP(A71,Data!A$21:A$4869,Data!G$21:G$4869) -> 64903956 | E71: 3189
A72: 923 | B72: 71 | C72: 65835410 | D72: =LOOKUP(A72,Data!A$21:A$4869,Data!G$21:G$4869) -> 65832468 | E72: 2942
A73: 936 | B73: 72 | C73: 66763675 | D73: =LOOKUP(A73,Data!A$21:A$4869,Data!G$21:G$4869) -> 66760980 | E73: 2695
A74: 949 | B74: 73 | C74: 67691940 | D74: =LOOKUP(A74,Data!A$21:A$4869,Data!G$21:G$4869) -> 67689492 | E74: 2448
A75: 962 | B75: 74 | C75: 68620205 | D75: =LOOKUP(A75,Data!A$21:A$4869,Data!G$21:G$4869) -> 68618004 | E75: 2201
A76: 975 | B76: 75 | C76: 69548470 | D76: =LOOKUP(A76,Data!A$21:A$4869,Data!G$21:G$4869) -> 69546516 | E76: 1954
A77: 988 | B77: 76 | C77: 70476735 | D77: =LOOKUP(A77,Data!A$21:A$4869,Data!G$21:G$4869) -> 70475028 | E77: 1707
A78: 1001 | B78: 77 | C78: 71405000 | D78: =LOOKUP(A78,Data!A$21:A$4869,Data!G$21:G$4869) -> 71403540 | E78: 1460
A79: 1014 | B79: 78 | C79: 72333265 | D79: =LOOKUP(A79,Data!A$21:A$4869,Data!G$21:G$4869) -> 72332052 | E79: 1213
A80: 1027 | B80: 79 | C80: 73261530 | D80: =LOOKUP(A80,Data!A$21:A$4869,Data!G$21:G$4869) -> 73260564 | E80: 966
A81: 1040 | B81: 80 | C81: 74189795 | D81: =LOOKUP(A81,Data!A$21:A$4869,Data!G$21:G$4869) -> 74186658 | E81: 3137
A82: 1053 | B82: 81 | C82: 75118060 | D82: =LOOKUP(A82,Data!A$21:A$4869,Data!G$21:G$4869) -> 75115170 | E82: 2890
A83: 1066 | B83: 82 | C83: 76046325 | D83: =LOOKUP(A83,Data!A$21:A$4869,Data!G$21:G$4869) -> 76043682 | E83: 2643
A84: 1079 | B84: 83 | C84: 76974590 | D84: =LOOKUP(A84,Data!A$21:A$4869,Data!G$21:G$4869) -> 76972194 | E84: 2396
A85: 1092 | B85: 84 | C85: 77902855 | D85: =LOOKUP(A85,Data!A$21:A$4869,Data!G$21:G$4869) -> 77900706 | E85: 2149
A86: 1105 | B86: 85 | C86: 78831120 | D86: =LOOKUP(A86,Data!A$21:A$4869,Data!G$21:G$4869) -> 78829218 | E86: 1902
A87: 1118 | B87: 86 | C87: 79759385 | D87: =LOOKUP(A87,Data!A$21:A$4869,Data!G$21:G$4869) -> 79757730 | E87: 1655
A88: 1131 | B88: 87 | C88: 80687650 | D88: =LOOKUP(A88,Data!A$21:A$4869,Data!G$21:G$4869) -> 80686242 | E88: 1408
A89: 1144 | B89: 88 | C89: 81615915 | D89: =LOOKUP(A89,Data!A$21:A$4869,Data!G$21:G$4869) -> 81614754 | E89: 1161
A90: 1157 | B90: 89 | C90: 82544180 | D90: =LOOKUP(A90,Data!A$21:A$4869,Data!G$21:G$4869) -> 82543266 | E90: 914
A91: 1170 | B91: 90 | C91: 83472445 | D91: =LOOKUP(A91,Data!A$21:A$4869,Data!G$21:G$4869) -> 83469360 | E91: 3085
A92: 1183 | B92: 91 | C92: 84400710 | D92: =LOOKUP(A92,Data!A$21:A$4869,Data!G$21:G$4869) -> 84397872 | E92: 2838
A93: 1196 | B93: 92 | C93: 85328975 | D93: =LOOKUP(A93,Data!A$21:A$4869,Data!G$21:G$4869) -> 85326384 | E93: 2591
A94: 1209 | B94: 93 | C94: 86257240 | D94: =LOOKUP(A94,Data!A$21:A$4869,Data!G$21:G$4869) -> 86254896 | E94: 2344
A95: 1222 | B95: 94 | C95: 87185505 | D95: =LOOKUP(A95,Data!A$21:A$4869,Data!G$21:G$4869) -> 87183408 | E95: 2097
A96: 1235 | B96: 95 | C96: 88113770 | D96: =LOOKUP(A96,Data!A$21:A$4869,Data!G$21:G$4869) -> 88111920 | E96: 1850
A97: 1248 | B97: 96 | C97: 89042035 | D97: =LOOKUP(A97,Data!A$21:A$4869,Data!G$21:G$4869) -> 89040432 | E97: 1603
A98: 1261 | B98: 97 | C98: 89970300 | D98: =LOOKUP(A98,Data!A$21:A$4869,Data!G$21:G$4869) -> 89968944 | E98: 1356
A99: 1274 | B99: 98 | C99: 90898565 | D99: =LOOKUP(A99,Data!A$21:A$4869,Data!G$21:G$4869) -> 90897456 | E99: 1109
A100: 1287 | B100: 99 | C100: 91826830 | D100: =LOOKUP(A100,Data!A$21:A$4869,Data!G$21:G$4869) -> 91823550 | E100: 3280
A101: 1300 | B101: 100 | C101: 92755095 | D101: =LOOKUP(A101,Data!A$21:A$4869,Data!G$21:G$4869) -> 92752062 | E101: 3033
A102: 1313 | B102: 101 | C102: 93683360 | D102: =LOOKUP(A102,Data!A$21:A$4869,Data!G$21:G$4869) -> 93680574 | E102: 2786
A103: 1326 | B103: 102 | C103: 94611625 | D103: =LOOKUP(A103,Data!A$21:A$4869,Data!G$21:G$4869) -> 94609086 | E103: 2539
A104: 1339 | B104: 103 | C104: 95539890 | D104: =LOOKUP(A104,Data!A$21:A$4869,Data!G$21:G$4869) -> 95537598 | E104: 2292
A105: 1352 | B105: 104 | C105: 96468155 | D105: =LOOKUP(A105,Data!A$21:A$4869,Data!G$21:G$4869) -> 96466110 | E105: 2045
A106: 1365 | B106: 105 | C106: 97396420 | D106: =LOOKUP(A106,Data!A$21:A$4869,Data!G$21:G$4869) -> 97394622 | E106: 1798
A107: 1378 | B107: 106 | C107: 98324685 | D107: =LOOKUP(A107,Data!A$21:A$4869,Data!G$21:G$4869) -> 98323134 | E107: 1551
A108: 1391 | B108: 107 | C108: 99252950 | D108: =LOOKUP(A108,Data!A$21:A$4869,Data!G$21:G$4869) -> 99251646 | E108: 1304
A109: 1404 | B109: 108 | C109: 100181215 | D109: =LOOKUP(A109,Data!A$21:A$4869,Data!G$21:G$4869) -> 100180158 | E109: 1057
A110: 1417 | B110: 109 | C110: 101109480 | D110: =LOOKUP(A110,Data!A$21:A$4869,Data!G$21:G$4869) -> 101106252 | E110: 3228
A111: 1430 | B111: 110 | C111: 102037745 | D111: =LOOKUP(A111,Data!A$21:A$4869,Data!G$21:G$4869) -> 102034764 | E111: 2981
A112: 1443 | B112: 111 | C112: 102966010 | D112: =LOOKUP(A112,Data!A$21:A$4869,Data!G$21:G$4869) -> 102963276 | E112: 2734
A113: 1456 | B113: 112 | C113: 103894275 | D113: =LOOKUP(A113,Data!A$21:A$4869,Data!G$21:G$4869) -> 103891788 | E113: 2487
A114: 1469 | B114: 113 | C114: 104822540 | D114: =LOOKUP(A114,Data!A$21:A$4869,Data!G$21:G$4869) -> 104820300 | E114: 2240
A115: 1482 | B115: 114 | C115: 105750805 | D115: =LOOKUP(A115,Data!A$21:A$4869,Data!G$21:G$4869) -> 105748812 | E115: 1993
A116: 1495 | B116: 115 | C116: 106679070 | D116: =LOOKUP(A116,Data!A$21:A$4869,Data!G$21:G$4869) -> 106677324 | E116: 1746
A117: 1508 | B117: 116 | C117: 107607335 | D117: =LOOKUP(A117,Data!A$21:A$4869,Data!G$21:G$4869) -> 107605836 | E117: 1499
A118: 1521 | B118: 117 | C118: 108535600 | D118: =LOOKUP(A118,Data!A$21:A$4869,Data!G$21:G$4869) -> 108534348 | E118: 1252
A119: 1534 | B119: 118 | C119: 109463865 | D119: =LOOKUP(A119,Data!A$21:A$4869,Data!G$21:G$4869) -> 109462860 | E119: 1005
A120: 1547 | B120: 119 | C120: 110392130 | D120: =LOOKUP(A120,Data!A$21:A$4869,Data!G$21:G$4869) -> 110388954 | E120: 3176
A121: 1560 | B121: 120 | C121: 111320395 | D121: =LOOKUP(A121,Data!A$21:A$4869,Data!G$21:G$4869) -> 111317466 | E121: 2929
A122: 1573 | B122: 121 | C122: 112248660 | D122: =LOOKUP(A122,Data!A$21:A$4869,Data!G$21:G$4869) -> 112245978 | E122: 2682
A123: 1586 | B123: 122 | C123: 113176925 | D123: =LOOKUP(A123,Data!A$21:A$4869,Data!G$21:G$4869) -> 113174490 | E123: 2435
A124: 1599 | B124: 123 | C124: 114105190 | D124: =LOOKUP(A124,Data!A$21:A$4869,Data!G$21:G$4869) -> 114103002 | E124: 2188
A125: 1612 | B125: 124 | C125: 115033455 | D125: =LOOKUP(A125,Data!A$21:A$4869,Data!G$21:G$4869) -> 115031514 | E125: 1941
A126: 1625 | B126: 125 | C126: 115961720 | D126: =LOOKUP(A126,Data!A$21:A$4869,Data!G$21:G$4869) -> 115960026 | E126: 1694
A127: 1638 | B127: 126 | C127: 116889985 | D127: =LOOKUP(A127,Data!A$21:A$4869,Data!G$21:G$4869) -> 116888538 | E127: 1447
A128: 1651 | B128: 127 | C128: 117818250 | D128: =LOOKUP(A128,Data!A$21:A$4869,Data!G$21:G$4869) -> 117817050 | E128: 1200
A129: 1664 | B129: 128 | C129: 118746515 | D129: =LOOKUP(A129,Data!A$21:A$4869,Data!G$21:G$4869) -> 118745562 | E129: 953
A130: 1677 | B130: 129 | C130: 119674780 | D130: =LOOKUP(A130,Data!A$21:A$4869,Data!G$21:G$4869) -> 119671656 | E130: =C130-D130 -> 3124
A131: 1690 | B131: 130 | C131: =(A131-1)*PPM -> 120603045 | D131: =LOOKUP(A131,Data!A$21:A$4869,Data!G$21:G$4869) -> 120600168 | E131: 2877
A132: =A131+13 -> 1703 | B132: =B131+1 -> 131 | C132: 121531310 | D132: =LOOKUP(A132,Data!A$21:A$4869,Data!G$21:G$4869) -> 121528680 | E132: 2630
A133: 1716 | B133: 132 | C133: 122459575 | D133: =LOOKUP(A133,Data!A$21:A$4869,Data!G$21:G$4869) -> 122457192 | E133: 2383
A134: 1729 | B134: 133 | C134: 123387840 | D134: =LOOKUP(A134,Data!A$21:A$4869,Data!G$21:G$4869) -> 123385704 | E134: 2136
A135: 1742 | B135: 134 | C135: 124316105 | D135: =LOOKUP(A135,Data!A$21:A$4869,Data!G$21:G$4869) -> 124314216 | E135: 1889
A136: 1755 | B136: 135 | C136: 125244370 | D136: =LOOKUP(A136,Data!A$21:A$4869,Data!G$21:G$4869) -> 125242728 | E136: 1642
A137: 1768 | B137: 136 | C137: 126172635 | D137: =LOOKUP(A137,Data!A$21:A$4869,Data!G$21:G$4869) -> 126171240 | E137: 1395
A138: 1781 | B138: 137 | C138: 127100900 | D138: =LOOKUP(A138,Data!A$21:A$4869,Data!G$21:G$4869) -> 127099752 | E138: 1148
A139: 1794 | B139: 138 | C139: 128029165 | D139: =LOOKUP(A139,Data!A$21:A$4869,Data!G$21:G$4869) -> 128028264 | E139: 901
A140: 1807 | B140: 139 | C140: 128957430 | D140: =LOOKUP(A140,Data!A$21:A$4869,Data!G$21:G$4869) -> 128954358 | E140: 3072
A141: 1820 | B141: 140 | C141: 129885695 | D141: =LOOKUP(A141,Data!A$21:A$4869,Data!G$21:G$4869) -> 129882870 | E141: 2825
A142: 1833 | B142: 141 | C142: 130813960 | D142: =LOOKUP(A142,Data!A$21:A$4869,Data!G$21:G$4869) -> 130811382 | E142: 2578
A143: 1846 | B143: 142 | C143: 131742225 | D143: =LOOKUP(A143,Data!A$21:A$4869,Data!G$21:G$4869) -> 131739894 | E143: 2331
A144: 1859 | B144: 143 | C144: 132670490 | D144: =LOOKUP(A144,Data!A$21:A$4869,Data!G$21:G$4869) -> 132668406 | E144: 2084
A145: 1872 | B145: 144 | C145: 133598755 | D145: =LOOKUP(A145,Data!A$21:A$4869,Data!G$21:G$4869) -> 133596918 | E145: 1837
A146: 1885 | B146: 145 | C146: 134527020 | D146: =LOOKUP(A146,Data!A$21:A$4869,Data!G$21:G$4869) -> 134525430 | E146: 1590
A147: 1898 | B147: 146 | C147: 135455285 | D147: =LOOKUP(A147,Data!A$21:A$4869,Data!G$21:G$4869) -> 135453942 | E147: 1343
A148: 1911 | B148: 147 | C148: 136383550 | D148: =LOOKUP(A148,Data!A$21:A$4869,Data!G$21:G$4869) -> 136382454 | E148: 1096
A149: 1924 | B149: 148 | C149: 137311815 | D149: =LOOKUP(A149,Data!A$21:A$4869,Data!G$21:G$4869) -> 137308548 | E149: 3267
A150: 1937 | B150: 149 | C150: 138240080 | D150: =LOOKUP(A150,Data!A$21:A$4869,Data!G$21:G$4869) -> 138237060 | E150: 3020
A151: 1950 | B151: 150 | C151: 139168345 | D151: =LOOKUP(A151,Data!A$21:A$4869,Data!G$21:G$4869) -> 139165572 | E151: 2773
A152: 1963 | B152: 151 | C152: 140096610 | D152: =LOOKUP(A152,Data!A$21:A$4869,Data!G$21:G$4869) -> 140094084 | E152: 2526
A153: 1976 | B153: 152 | C153: 141024875 | D153: =LOOKUP(A153,Data!A$21:A$4869,Data!G$21:G$4869) -> 141022596 | E153: 2279
A154: 1989 | B154: 153 | C154: 141953140 | D154: =LOOKUP(A154,Data!A$21:A$4869,Data!G$21:G$4869) -> 141951108 | E154: 2032
A155: 2002 | B155: 154 | C155: 142881405 | D155: =LOOKUP(A155,Data!A$21:A$4869,Data!G$21:G$4869) -> 142879620 | E155: 1785
A156: 2015 | B156: 155 | C156: 143809670 | D156: =LOOKUP(A156,Data!A$21:A$4869,Data!G$21:G$4869) -> 143808132 | E156: 1538
A157: 2028 | B157: 156 | C157: 144737935 | D157: =LOOKUP(A157,Data!A$21:A$4869,Data!G$21:G$4869) -> 144736644 | E157: 1291
A158: 2041 | B158: 157 | C158: 145666200 | D158: =LOOKUP(A158,Data!A$21:A$4869,Data!G$21:G$4869) -> 145665156 | E158: 1044
A159: 2054 | B159: 158 | C159: 146594465 | D159: =LOOKUP(A159,Data!A$21:A$4869,Data!G$21:G$4869) -> 146591250 | E159: 3215
A160: 2067 | B160: 159 | C160: 147522730 | D160: =LOOKUP(A160,Data!A$21:A$4869,Data!G$21:G$4869) -> 147519762 | E160: 2968
A161: 2080 | B161: 160 | C161: 148450995 | D161: =LOOKUP(A161,Data!A$21:A$4869,Data!G$21:G$4869) -> 148448274 | E161: 2721
A162: 2093 | B162: 161 | C162: 149379260 | D162: =LOOKUP(A162,Data!A$21:A$4869,Data!G$21:G$4869) -> 149376786 | E162: 2474
A163: 2106 | B163: 162 | C163: 150307525 | D163: =LOOKUP(A163,Data!A$21:A$4869,Data!G$21:G$4869) -> 150305298 | E163: 2227
A164: 2119 | B164: 163 | C164: 151235790 | D164: =LOOKUP(A164,Data!A$21:A$4869,Data!G$21:G$4869) -> 151233810 | E164: 1980
A165: 2132 | B165: 164 | C165: 152164055 | D165: =LOOKUP(A165,Data!A$21:A$4869,Data!G$21:G$4869) -> 152162322 | E165: 1733
A166: 2145 | B166: 165 | C166: 153092320 | D166: =LOOKUP(A166,Data!A$21:A$4869,Data!G$21:G$4869) -> 153090834 | E166: 1486
A167: 2158 | B167: 166 | C167: 154020585 | D167: =LOOKUP(A167,Data!A$21:A$4869,Data!G$21:G$4869) -> 154019346 | E167: 1239
A168: 2171 | B168: 167 | C168: 154948850 | D168: =LOOKUP(A168,Data!A$21:A$4869,Data!G$21:G$4869) -> 154947858 | E168: 992
A169: 2184 | B169: 168 | C169: 155877115 | D169: =LOOKUP(A169,Data!A$21:A$4869,Data!G$21:G$4869) -> 155873952 | E169: 3163
A170: 2197 | B170: 169 | C170: 156805380 | D170: =LOOKUP(A170,Data!A$21:A$4869,Data!G$21:G$4869) -> 156802464 | E170: 2916
A171: 2210 | B171: 170 | C171: 157733645 | D171: =LOOKUP(A171,Data!A$21:A$4869,Data!G$21:G$4869) -> 157730976 | E171: 2669
A172: 2223 | B172: 171 | C172: 158661910 | D172: =LOOKUP(A172,Data!A$21:A$4869,Data!G$21:G$4869) -> 158659488 | E172: 2422
A173: 2236 | B173: 172 | C173: 159590175 | D173: =LOOKUP(A173,Data!A$21:A$4869,Data!G$21:G$4869) -> 159588000 | E173: 2175
A174: 2249 | B174: 173 | C174: 160518440 | D174: =LOOKUP(A174,Data!A$21:A$4869,Data!G$21:G$4869) -> 160516512 | E174: 1928
A175: 2262 | B175: 174 | C175: 161446705 | D175: =LOOKUP(A175,Data!A$21:A$4869,Data!G$21:G$4869) -> 161445024 | E175: 1681
A176: 2275 | B176: 175 | C176: 162374970 | D176: =LOOKUP(A176,Data!A$21:A$4869,Data!G$21:G$4869) -> 162373536 | E176: 1434
A177: 2288 | B177: 176 | C177: 163303235 | D177: =LOOKUP(A177,Data!A$21:A$4869,Data!G$21:G$4869) -> 163302048 | E177: 1187
A178: 2301 | B178: 177 | C178: 164231500 | D178: =LOOKUP(A178,Data!A$21:A$4869,Data!G$21:G$4869) -> 164230560 | E178: 940
A179: 2314 | B179: 178 | C179: 165159765 | D179: =LOOKUP(A179,Data!A$21:A$4869,Data!G$21:G$4869) -> 165156654 | E179: 3111
A180: 2327 | B180: 179 | C180: 166088030 | D180: =LOOKUP(A180,Data!A$21:A$4869,Data!G$21:G$4869) -> 166085166 | E180: 2864
A181: 2340 | B181: 180 | C181: 167016295 | D181: =LOOKUP(A181,Data!A$21:A$4869,Data!G$21:G$4869) -> 167013678 | E181: 2617
A182: 2353 | B182: 181 | C182: 167944560 | D182: =LOOKUP(A182,Data!A$21:A$4869,Data!G$21:G$4869) -> 167942190 | E182: 2370
A183: 2366 | B183: 182 | C183: 168872825 | D183: =LOOKUP(A183,Data!A$21:A$4869,Data!G$21:G$4869) -> 168870702 | E183: 2123
A184: 2379 | B184: 183 | C184: 169801090 | D184: =LOOKUP(A184,Data!A$21:A$4869,Data!G$21:G$4869) -> 169799214 | E184: 1876
A185: 2392 | B185: 184 | C185: 170729355 | D185: =LOOKUP(A185,Data!A$21:A$4869,Data!G$21:G$4869) -> 170727726 | E185: 1629
A186: 2405 | B186: 185 | C186: 171657620 | D186: =LOOKUP(A186,Data!A$21:A$4869,Data!G$21:G$4869) -> 171656238 | E186: 1382
A187: 2418 | B187: 186 | C187: 172585885 | D187: =LOOKUP(A187,Data!A$21:A$4869,Data!G$21:G$4869) -> 172584750 | E187: 1135
A188: 2431 | B188: 187 | C188: 173514150 | D188: =LOOKUP(A188,Data!A$21:A$4869,Data!G$21:G$4869) -> 173513262 | E188: 888
A189: 2444 | B189: 188 | C189: 174442415 | D189: =LOOKUP(A189,Data!A$21:A$4869,Data!G$21:G$4869) -> 174439356 | E189: 3059
A190: 2457 | B190: 189 | C190: 175370680 | D190: =LOOKUP(A190,Data!A$21:A$4869,Data!G$21:G$4869) -> 175367868 | E190: 2812
A191: 2470 | B191: 190 | C191: 176298945 | D191: =LOOKUP(A191,Data!A$21:A$4869,Data!G$21:G$4869) -> 176296380 | E191: 2565
A192: 2483 | B192: 191 | C192: 177227210 | D192: =LOOKUP(A192,Data!A$21:A$4869,Data!G$21:G$4869) -> 177224892 | E192: 2318
A193: 2496 | B193: 192 | C193: 178155475 | D193: =LOOKUP(A193,Data!A$21:A$4869,Data!G$21:G$4869) -> 178153404 | E193: 2071
A194: 2509 | B194: 193 | C194: 179083740 | D194: =LOOKUP(A194,Data!A$21:A$4869,Data!G$21:G$4869) -> 179081916 | E194: =C194-D194 -> 1824
A195: 2522 | B195: 194 | C195: =(A195-1)*PPM -> 180012005 | D195: =LOOKUP(A195,Data!A$21:A$4869,Data!G$21:G$4869) -> 180010428 | E195: 1577
A196: =A195+13 -> 2535 | B196: =B195+1 -> 195 | C196: 180940270 | D196: =LOOKUP(A196,Data!A$21:A$4869,Data!G$21:G$4869) -> 180938940 | E196: 1330
A197: 2548 | B197: 196 | C197: 181868535 | D197: =LOOKUP(A197,Data!A$21:A$4869,Data!G$21:G$4869) -> 181867452 | E197: 1083
A198: 2561 | B198: 197 | C198: 182796800 | D198: =LOOKUP(A198,Data!A$21:A$4869,Data!G$21:G$4869) -> 182793546 | E198: 3254
A199: 2574 | B199: 198 | C199: 183725065 | D199: =LOOKUP(A199,Data!A$21:A$4869,Data!G$21:G$4869) -> 183722058 | E199: 3007
A200: 2587 | B200: 199 | C200: 184653330 | D200: =LOOKUP(A200,Data!A$21:A$4869,Data!G$21:G$4869) -> 184650570 | E200: 2760
... 174 more rows

Sheet Years2
A1: Month in Cycle | B1: Lunar Year | C1: New Year Moment | D1: Elapsed | E1: Difference
A2: =StartMonth2 -> 2 | B2: 1 | C2: =(A2-1)*PPM -> 71405 | D2: =LOOKUP(A2,Data!A$21:A$4869,Data!G$21:G$4869) -> 72540 | E2: =C2-D2 -> -1135
A3: =A2+13 -> 15 | B3: =B2+1 -> 2 | C3: 999670 | D3: =LOOKUP(A3,Data!A$21:A$4869,Data!G$21:G$4869) -> 998634 | E3: 1036
A4: 28 | B4: 3 | C4: 1927935 | D4: =LOOKUP(A4,Data!A$21:A$4869,Data!G$21:G$4869) -> 1927146 | E4: 789
A5: 41 | B5: 4 | C5: 2856200 | D5: =LOOKUP(A5,Data!A$21:A$4869,Data!G$21:G$4869) -> 2855658 | E5: 542
A6: 54 | B6: 5 | C6: 3784465 | D6: =LOOKUP(A6,Data!A$21:A$4869,Data!G$21:G$4869) -> 3784170 | E6: 295
A7: 67 | B7: 6 | C7: 4712730 | D7: =LOOKUP(A7,Data!A$21:A$4869,Data!G$21:G$4869) -> 4712682 | E7: 48
A8: 80 | B8: 7 | C8: 5640995 | D8: =LOOKUP(A8,Data!A$21:A$4869,Data!G$21:G$4869) -> 5641194 | E8: -199
A9: 93 | B9: 8 | C9: 6569260 | D9: =LOOKUP(A9,Data!A$21:A$4869,Data!G$21:G$4869) -> 6569706 | E9: -446
A10: 106 | B10: 9 | C10: 7497525 | D10: =LOOKUP(A10,Data!A$21:A$4869,Data!G$21:G$4869) -> 7498218 | E10: -693
A11: 119 | B11: 10 | C11: 8425790 | D11: =LOOKUP(A11,Data!A$21:A$4869,Data!G$21:G$4869) -> 8426730 | E11: -940
A12: 132 | B12: 11 | C12: 9354055 | D12: =LOOKUP(A12,Data!A$21:A$4869,Data!G$21:G$4869) -> 9352824 | E12: 1231
A13: 145 | B13: 12 | C13: 10282320 | D13: =LOOKUP(A13,Data!A$21:A$4869,Data!G$21:G$4869) -> 10281336 | E13: 984
A14: 158 | B14: 13 | C14: 11210585 | D14: =LOOKUP(A14,Data!A$21:A$4869,Data!G$21:G$4869) -> 11209848 | E14: 737
A15: 171 | B15: 14 | C15: 12138850 | D15: =LOOKUP(A15,Data!A$21:A$4869,Data!G$21:G$4869) -> 12138360 | E15: 490
A16: 184 | B16: 15 | C16: 13067115 | D16: =LOOKUP(A16,Data!A$21:A$4869,Data!G$21:G$4869) -> 13066872 | E16: 243
A17: 197 | B17: 16 | C17: 13995380 | D17: =LOOKUP(A17,Data!A$21:A$4869,Data!G$21:G$4869) -> 13995384 | E17: -4
A18: 210 | B18: 17 | C18: 14923645 | D18: =LOOKUP(A18,Data!A$21:A$4869,Data!G$21:G$4869) -> 14923896 | E18: -251
A19: 223 | B19: 18 | C19: 15851910 | D19: =LOOKUP(A19,Data!A$21:A$4869,Data!G$21:G$4869) -> 15852408 | E19: -498
A20: 236 | B20: 19 | C20: 16780175 | D20: =LOOKUP(A20,Data!A$21:A$4869,Data!G$21:G$4869) -> 16780920 | E20: -745
A21: 249 | B21: 20 | C21: 17708440 | D21: =LOOKUP(A21,Data!A$21:A$4869,Data!G$21:G$4869) -> 17709432 | E21: -992
A22: 262 | B22: 21 | C22: 18636705 | D22: =LOOKUP(A22,Data!A$21:A$4869,Data!G$21:G$4869) -> 18635526 | E22: 1179
A23: 275 | B23: 22 | C23: 19564970 | D23: =LOOKUP(A23,Data!A$21:A$4869,Data!G$21:G$4869) -> 19564038 | E23: 932
A24: 288 | B24: 23 | C24: 20493235 | D24: =LOOKUP(A24,Data!A$21:A$4869,Data!G$21:G$4869) -> 20492550 | E24: 685
A25: 301 | B25: 24 | C25: 21421500 | D25: =LOOKUP(A25,Data!A$21:A$4869,Data!G$21:G$4869) -> 21421062 | E25: 438
A26: 314 | B26: 25 | C26: 22349765 | D26: =LOOKUP(A26,Data!A$21:A$4869,Data!G$21:G$4869) -> 22349574 | E26: 191
A27: 327 | B27: 26 | C27: 23278030 | D27: =LOOKUP(A27,Data!A$21:A$4869,Data!G$21:G$4869) -> 23278086 | E27: -56
A28: 340 | B28: 27 | C28: 24206295 | D28: =LOOKUP(A28,Data!A$21:A$4869,Data!G$21:G$4869) -> 24206598 | E28: -303
A29: 353 | B29: 28 | C29: 25134560 | D29: =LOOKUP(A29,Data!A$21:A$4869,Data!G$21:G$4869) -> 25135110 | E29: -550
A30: 366 | B30: 29 | C30: 26062825 | D30: =LOOKUP(A30,Data!A$21:A$4869,Data!G$21:G$4869) -> 26063622 | E30: -797
A31: 379 | B31: 30 | C31: 26991090 | D31: =LOOKUP(A31,Data!A$21:A$4869,Data!G$21:G$4869) -> 26992134 | E31: -1044
A32: 392 | B32: 31 | C32: 27919355 | D32: =LOOKUP(A32,Data!A$21:A$4869,Data!G$21:G$4869) -> 27918228 | E32: 1127
A33: 405 | B33: 32 | C33: 28847620 | D33: =LOOKUP(A33,Data!A$21:A$4869,Data!G$21:G$4869) -> 28846740 | E33: 880
A34: 418 | B34: 33 | C34: 29775885 | D34: =LOOKUP(A34,Data!A$21:A$4869,Data!G$21:G$4869) -> 29775252 | E34: 633
A35: 431 | B35: 34 | C35: 30704150 | D35: =LOOKUP(A35,Data!A$21:A$4869,Data!G$21:G$4869) -> 30703764 | E35: 386
A36: 444 | B36: 35 | C36: 31632415 | D36: =LOOKUP(A36,Data!A$21:A$4869,Data!G$21:G$4869) -> 31632276 | E36: 139
A37: 457 | B37: 36 | C37: 32560680 | D37: =LOOKUP(A37,Data!A$21:A$4869,Data!G$21:G$4869) -> 32560788 | E37: -108
A38: 470 | B38: 37 | C38: 33488945 | D38: =LOOKUP(A38,Data!A$21:A$4869,Data!G$21:G$4869) -> 33489300 | E38: -355
A39: 483 | B39: 38 | C39: 34417210 | D39: =LOOKUP(A39,Data!A$21:A$4869,Data!G$21:G$4869) -> 34417812 | E39: -602
A40: 496 | B40: 39 | C40: 35345475 | D40: =LOOKUP(A40,Data!A$21:A$4869,Data!G$21:G$4869) -> 35346324 | E40: -849
A41: 509 | B41: 40 | C41: 36273740 | D41: =LOOKUP(A41,Data!A$21:A$4869,Data!G$21:G$4869) -> 36274836 | E41: -1096
A42: 522 | B42: 41 | C42: 37202005 | D42: =LOOKUP(A42,Data!A$21:A$4869,Data!G$21:G$4869) -> 37200930 | E42: 1075
A43: 535 | B43: 42 | C43: 38130270 | D43: =LOOKUP(A43,Data!A$21:A$4869,Data!G$21:G$4869) -> 38129442 | E43: 828
A44: 548 | B44: 43 | C44: 39058535 | D44: =LOOKUP(A44,Data!A$21:A$4869,Data!G$21:G$4869) -> 39057954 | E44: 581
A45: 561 | B45: 44 | C45: 39986800 | D45: =LOOKUP(A45,Data!A$21:A$4869,Data!G$21:G$4869) -> 39986466 | E45: 334
A46: 574 | B46: 45 | C46: 40915065 | D46: =LOOKUP(A46,Data!A$21:A$4869,Data!G$21:G$4869) -> 40914978 | E46: 87
A47: 587 | B47: 46 | C47: 41843330 | D47: =LOOKUP(A47,Data!A$21:A$4869,Data!G$21:G$4869) -> 41843490 | E47: -160
A48: 600 | B48: 47 | C48: 42771595 | D48: =LOOKUP(A48,Data!A$21:A$4869,Data!G$21:G$4869) -> 42772002 | E48: -407
A49: 613 | B49: 48 | C49: 43699860 | D49: =LOOKUP(A49,Data!A$21:A$4869,Data!G$21:G$4869) -> 43700514 | E49: -654
A50: 626 | B50: 49 | C50: 44628125 | D50: =LOOKUP(A50,Data!A$21:A$4869,Data!G$21:G$4869) -> 44629026 | E50: -901
A51: 639 | B51: 50 | C51: 45556390 | D51: =LOOKUP(A51,Data!A$21:A$4869,Data!G$21:G$4869) -> 45555120 | E51: 1270
A52: 652 | B52: 51 | C52: 46484655 | D52: =LOOKUP(A52,Data!A$21:A$4869,Data!G$21:G$4869) -> 46483632 | E52: 1023
A53: 665 | B53: 52 | C53: 47412920 | D53: =LOOKUP(A53,Data!A$21:A$4869,Data!G$21:G$4869) -> 47412144 | E53: 776
A54: 678 | B54: 53 | C54: 48341185 | D54: =LOOKUP(A54,Data!A$21:A$4869,Data!G$21:G$4869) -> 48340656 | E54: 529
A55: 691 | B55: 54 | C55: 49269450 | D55: =LOOKUP(A55,Data!A$21:A$4869,Data!G$21:G$4869) -> 49269168 | E55: 282
A56: 704 | B56: 55 | C56: 50197715 | D56: =LOOKUP(A56,Data!A$21:A$4869,Data!G$21:G$4869) -> 50197680 | E56: 35
A57: 717 | B57: 56 | C57: 51125980 | D57: =LOOKUP(A57,Data!A$21:A$4869,Data!G$21:G$4869) -> 51126192 | E57: -212
A58: 730 | B58: 57 | C58: 52054245 | D58: =LOOKUP(A58,Data!A$21:A$4869,Data!G$21:G$4869) -> 52054704 | E58: -459
A59: 743 | B59: 58 | C59: 52982510 | D59: =LOOKUP(A59,Data!A$21:A$4869,Data!G$21:G$4869) -> 52983216 | E59: -706
A60: 756 | B60: 59 | C60: 53910775 | D60: =LOOKUP(A60,Data!A$21:A$4869,Data!G$21:G$4869) -> 53911728 | E60: -953
A61: 769 | B61: 60 | C61: 54839040 | D61: =LOOKUP(A61,Data!A$21:A$4869,Data!G$21:G$4869) -> 54837822 | E61: 1218
A62: 782 | B62: 61 | C62: 55767305 | D62: =LOOKUP(A62,Data!A$21:A$4869,Data!G$21:G$4869) -> 55766334 | E62: 971
A63: 795 | B63: 62 | C63: 56695570 | D63: =LOOKUP(A63,Data!A$21:A$4869,Data!G$21:G$4869) -> 56694846 | E63: 724
A64: 808 | B64: 63 | C64: 57623835 | D64: =LOOKUP(A64,Data!A$21:A$4869,Data!G$21:G$4869) -> 57623358 | E64: 477
A65: 821 | B65: 64 | C65: 58552100 | D65: =LOOKUP(A65,Data!A$21:A$4869,Data!G$21:G$4869) -> 58551870 | E65: 230
A66: 834 | B66: 65 | C66: =(A66-1)*PPM -> 59480365 | D66: =LOOKUP(A66,Data!A$21:A$4869,Data!G$21:G$4869) -> 59480382 | E66: =C66-D66 -> -17
A67: =A66+13 -> 847 | B67: =B66+1 -> 66 | C67: 60408630 | D67: =LOOKUP(A67,Data!A$21:A$4869,Data!G$21:G$4869) -> 60408894 | E67: -264
A68: 860 | B68: 67 | C68: 61336895 | D68: =LOOKUP(A68,Data!A$21:A$4869,Data!G$21:G$4869) -> 61337406 | E68: -511
A69: 873 | B69: 68 | C69: 62265160 | D69: =LOOKUP(A69,Data!A$21:A$4869,Data!G$21:G$4869) -> 62265918 | E69: -758
A70: 886 | B70: 69 | C70: 63193425 | D70: =LOOKUP(A70,Data!A$21:A$4869,Data!G$21:G$4869) -> 63194430 | E70: -1005
A71: 899 | B71: 70 | C71: 64121690 | D71: =LOOKUP(A71,Data!A$21:A$4869,Data!G$21:G$4869) -> 64120524 | E71: 1166
A72: 912 | B72: 71 | C72: 65049955 | D72: =LOOKUP(A72,Data!A$21:A$4869,Data!G$21:G$4869) -> 65049036 | E72: 919
A73: 925 | B73: 72 | C73: 65978220 | D73: =LOOKUP(A73,Data!A$21:A$4869,Data!G$21:G$4869) -> 65977548 | E73: 672
A74: 938 | B74: 73 | C74: 66906485 | D74: =LOOKUP(A74,Data!A$21:A$4869,Data!G$21:G$4869) -> 66906060 | E74: 425
A75: 951 | B75: 74 | C75: 67834750 | D75: =LOOKUP(A75,Data!A$21:A$4869,Data!G$21:G$4869) -> 67834572 | E75: 178
A76: 964 | B76: 75 | C76: 68763015 | D76: =LOOKUP(A76,Data!A$21:A$4869,Data!G$21:G$4869) -> 68763084 | E76: -69
A77: 977 | B77: 76 | C77: 69691280 | D77: =LOOKUP(A77,Data!A$21:A$4869,Data!G$21:G$4869) -> 69691596 | E77: -316
A78: 990 | B78: 77 | C78: 70619545 | D78: =LOOKUP(A78,Data!A$21:A$4869,Data!G$21:G$4869) -> 70620108 | E78: -563
A79: 1003 | B79: 78 | C79: 71547810 | D79: =LOOKUP(A79,Data!A$21:A$4869,Data!G$21:G$4869) -> 71548620 | E79: -810
A80: 1016 | B80: 79 | C80: 72476075 | D80: =LOOKUP(A80,Data!A$21:A$4869,Data!G$21:G$4869) -> 72477132 | E80: -1057
A81: 1029 | B81: 80 | C81: 73404340 | D81: =LOOKUP(A81,Data!A$21:A$4869,Data!G$21:G$4869) -> 73403226 | E81: 1114
A82: 1042 | B82: 81 | C82: 74332605 | D82: =LOOKUP(A82,Data!A$21:A$4869,Data!G$21:G$4869) -> 74331738 | E82: 867
A83: 1055 | B83: 82 | C83: 75260870 | D83: =LOOKUP(A83,Data!A$21:A$4869,Data!G$21:G$4869) -> 75260250 | E83: 620
A84: 1068 | B84: 83 | C84: 76189135 | D84: =LOOKUP(A84,Data!A$21:A$4869,Data!G$21:G$4869) -> 76188762 | E84: 373
A85: 1081 | B85: 84 | C85: 77117400 | D85: =LOOKUP(A85,Data!A$21:A$4869,Data!G$21:G$4869) -> 77117274 | E85: 126
A86: 1094 | B86: 85 | C86: 78045665 | D86: =LOOKUP(A86,Data!A$21:A$4869,Data!G$21:G$4869) -> 78045786 | E86: -121
A87: 1107 | B87: 86 | C87: 78973930 | D87: =LOOKUP(A87,Data!A$21:A$4869,Data!G$21:G$4869) -> 78974298 | E87: -368
A88: 1120 | B88: 87 | C88: 79902195 | D88: =LOOKUP(A88,Data!A$21:A$4869,Data!G$21:G$4869) -> 79902810 | E88: -615
A89: 1133 | B89: 88 | C89: 80830460 | D89: =LOOKUP(A89,Data!A$21:A$4869,Data!G$21:G$4869) -> 80831322 | E89: -862
A90: 1146 | B90: 89 | C90: 81758725 | D90: =LOOKUP(A90,Data!A$21:A$4869,Data!G$21:G$4869) -> 81759834 | E90: -1109
A91: 1159 | B91: 90 | C91: 82686990 | D91: =LOOKUP(A91,Data!A$21:A$4869,Data!G$21:G$4869) -> 82685928 | E91: 1062
A92: 1172 | B92: 91 | C92: 83615255 | D92: =LOOKUP(A92,Data!A$21:A$4869,Data!G$21:G$4869) -> 83614440 | E92: 815
A93: 1185 | B93: 92 | C93: 84543520 | D93: =LOOKUP(A93,Data!A$21:A$4869,Data!G$21:G$4869) -> 84542952 | E93: 568
A94: 1198 | B94: 93 | C94: 85471785 | D94: =LOOKUP(A94,Data!A$21:A$4869,Data!G$21:G$4869) -> 85471464 | E94: 321
A95: 1211 | B95: 94 | C95: 86400050 | D95: =LOOKUP(A95,Data!A$21:A$4869,Data!G$21:G$4869) -> 86399976 | E95: 74
A96: 1224 | B96: 95 | C96: 87328315 | D96: =LOOKUP(A96,Data!A$21:A$4869,Data!G$21:G$4869) -> 87328488 | E96: -173
A97: 1237 | B97: 96 | C97: 88256580 | D97: =LOOKUP(A97,Data!A$21:A$4869,Data!G$21:G$4869) -> 88257000 | E97: -420
A98: 1250 | B98: 97 | C98: 89184845 | D98: =LOOKUP(A98,Data!A$21:A$4869,Data!G$21:G$4869) -> 89185512 | E98: -667
A99: 1263 | B99: 98 | C99: 90113110 | D99: =LOOKUP(A99,Data!A$21:A$4869,Data!G$21:G$4869) -> 90114024 | E99: -914
A100: 1276 | B100: 99 | C100: 91041375 | D100: =LOOKUP(A100,Data!A$21:A$4869,Data!G$21:G$4869) -> 91040118 | E100: 1257
A101: 1289 | B101: 100 | C101: 91969640 | D101: =LOOKUP(A101,Data!A$21:A$4869,Data!G$21:G$4869) -> 91968630 | E101: 1010
A102: 1302 | B102: 101 | C102: 92897905 | D102: =LOOKUP(A102,Data!A$21:A$4869,Data!G$21:G$4869) -> 92897142 | E102: 763
A103: 1315 | B103: 102 | C103: 93826170 | D103: =LOOKUP(A103,Data!A$21:A$4869,Data!G$21:G$4869) -> 93825654 | E103: 516
A104: 1328 | B104: 103 | C104: 94754435 | D104: =LOOKUP(A104,Data!A$21:A$4869,Data!G$21:G$4869) -> 94754166 | E104: 269
A105: 1341 | B105: 104 | C105: 95682700 | D105: =LOOKUP(A105,Data!A$21:A$4869,Data!G$21:G$4869) -> 95682678 | E105: 22
A106: 1354 | B106: 105 | C106: 96610965 | D106: =LOOKUP(A106,Data!A$21:A$4869,Data!G$21:G$4869) -> 96611190 | E106: -225
A107: 1367 | B107: 106 | C107: 97539230 | D107: =LOOKUP(A107,Data!A$21:A$4869,Data!G$21:G$4869) -> 97539702 | E107: -472
A108: 1380 | B108: 107 | C108: 98467495 | D108: =LOOKUP(A108,Data!A$21:A$4869,Data!G$21:G$4869) -> 98468214 | E108: -719
A109: 1393 | B109: 108 | C109: 99395760 | D109: =LOOKUP(A109,Data!A$21:A$4869,Data!G$21:G$4869) -> 99396726 | E109: -966
A110: 1406 | B110: 109 | C110: 100324025 | D110: =LOOKUP(A110,Data!A$21:A$4869,Data!G$21:G$4869) -> 100322820 | E110: 1205
A111: 1419 | B111: 110 | C111: 101252290 | D111: =LOOKUP(A111,Data!A$21:A$4869,Data!G$21:G$4869) -> 101251332 | E111: 958
A112: 1432 | B112: 111 | C112: 102180555 | D112: =LOOKUP(A112,Data!A$21:A$4869,Data!G$21:G$4869) -> 102179844 | E112: 711
A113: 1445 | B113: 112 | C113: 103108820 | D113: =LOOKUP(A113,Data!A$21:A$4869,Data!G$21:G$4869) -> 103108356 | E113: 464
A114: 1458 | B114: 113 | C114: 104037085 | D114: =LOOKUP(A114,Data!A$21:A$4869,Data!G$21:G$4869) -> 104036868 | E114: 217
A115: 1471 | B115: 114 | C115: 104965350 | D115: =LOOKUP(A115,Data!A$21:A$4869,Data!G$21:G$4869) -> 104965380 | E115: -30
A116: 1484 | B116: 115 | C116: 105893615 | D116: =LOOKUP(A116,Data!A$21:A$4869,Data!G$21:G$4869) -> 105893892 | E116: -277
A117: 1497 | B117: 116 | C117: 106821880 | D117: =LOOKUP(A117,Data!A$21:A$4869,Data!G$21:G$4869) -> 106822404 | E117: -524
A118: 1510 | B118: 117 | C118: 107750145 | D118: =LOOKUP(A118,Data!A$21:A$4869,Data!G$21:G$4869) -> 107750916 | E118: -771
A119: 1523 | B119: 118 | C119: 108678410 | D119: =LOOKUP(A119,Data!A$21:A$4869,Data!G$21:G$4869) -> 108679428 | E119: -1018
A120: 1536 | B120: 119 | C120: 109606675 | D120: =LOOKUP(A120,Data!A$21:A$4869,Data!G$21:G$4869) -> 109605522 | E120: 1153
A121: 1549 | B121: 120 | C121: 110534940 | D121: =LOOKUP(A121,Data!A$21:A$4869,Data!G$21:G$4869) -> 110534034 | E121: 906
A122: 1562 | B122: 121 | C122: 111463205 | D122: =LOOKUP(A122,Data!A$21:A$4869,Data!G$21:G$4869) -> 111462546 | E122: 659
A123: 1575 | B123: 122 | C123: 112391470 | D123: =LOOKUP(A123,Data!A$21:A$4869,Data!G$21:G$4869) -> 112391058 | E123: 412
A124: 1588 | B124: 123 | C124: 113319735 | D124: =LOOKUP(A124,Data!A$21:A$4869,Data!G$21:G$4869) -> 113319570 | E124: 165
A125: 1601 | B125: 124 | C125: 114248000 | D125: =LOOKUP(A125,Data!A$21:A$4869,Data!G$21:G$4869) -> 114248082 | E125: -82
A126: 1614 | B126: 125 | C126: 115176265 | D126: =LOOKUP(A126,Data!A$21:A$4869,Data!G$21:G$4869) -> 115176594 | E126: -329
A127: 1627 | B127: 126 | C127: 116104530 | D127: =LOOKUP(A127,Data!A$21:A$4869,Data!G$21:G$4869) -> 116105106 | E127: -576
A128: 1640 | B128: 127 | C128: 117032795 | D128: =LOOKUP(A128,Data!A$21:A$4869,Data!G$21:G$4869) -> 117033618 | E128: -823
A129: 1653 | B129: 128 | C129: 117961060 | D129: =LOOKUP(A129,Data!A$21:A$4869,Data!G$21:G$4869) -> 117962130 | E129: -1070
A130: 1666 | B130: 129 | C130: =(A130-1)*PPM -> 118889325 | D130: =LOOKUP(A130,Data!A$21:A$4869,Data!G$21:G$4869) -> 118888224 | E130: =C130-D130 -> 1101
A131: =A130+13 -> 1679 | B131: =B130+1 -> 130 | C131: 119817590 | D131: =LOOKUP(A131,Data!A$21:A$4869,Data!G$21:G$4869) -> 119816736 | E131: 854
A132: 1692 | B132: 131 | C132: 120745855 | D132: =LOOKUP(A132,Data!A$21:A$4869,Data!G$21:G$4869) -> 120745248 | E132: 607
A133: 1705 | B133: 132 | C133: 121674120 | D133: =LOOKUP(A133,Data!A$21:A$4869,Data!G$21:G$4869) -> 121673760 | E133: 360
A134: 1718 | B134: 133 | C134: 122602385 | D134: =LOOKUP(A134,Data!A$21:A$4869,Data!G$21:G$4869) -> 122602272 | E134: 113
A135: 1731 | B135: 134 | C135: 123530650 | D135: =LOOKUP(A135,Data!A$21:A$4869,Data!G$21:G$4869) -> 123530784 | E135: -134
A136: 1744 | B136: 135 | C136: 124458915 | D136: =LOOKUP(A136,Data!A$21:A$4869,Data!G$21:G$4869) -> 124459296 | E136: -381
A137: 1757 | B137: 136 | C137: 125387180 | D137: =LOOKUP(A137,Data!A$21:A$4869,Data!G$21:G$4869) -> 125387808 | E137: -628
A138: 1770 | B138: 137 | C138: 126315445 | D138: =LOOKUP(A138,Data!A$21:A$4869,Data!G$21:G$4869) -> 126316320 | E138: -875
A139: 1783 | B139: 138 | C139: 127243710 | D139: =LOOKUP(A139,Data!A$21:A$4869,Data!G$21:G$4869) -> 127244832 | E139: -1122
A140: 1796 | B140: 139 | C140: 128171975 | D140: =LOOKUP(A140,Data!A$21:A$4869,Data!G$21:G$4869) -> 128170926 | E140: 1049
A141: 1809 | B141: 140 | C141: 129100240 | D141: =LOOKUP(A141,Data!A$21:A$4869,Data!G$21:G$4869) -> 129099438 | E141: 802
A142: 1822 | B142: 141 | C142: 130028505 | D142: =LOOKUP(A142,Data!A$21:A$4869,Data!G$21:G$4869) -> 130027950 | E142: 555
A143: 1835 | B143: 142 | C143: 130956770 | D143: =LOOKUP(A143,Data!A$21:A$4869,Data!G$21:G$4869) -> 130956462 | E143: 308
A144: 1848 | B144: 143 | C144: 131885035 | D144: =LOOKUP(A144,Data!A$21:A$4869,Data!G$21:G$4869) -> 131884974 | E144: 61
A145: 1861 | B145: 144 | C145: 132813300 | D145: =LOOKUP(A145,Data!A$21:A$4869,Data!G$21:G$4869) -> 132813486 | E145: -186
A146: 1874 | B146: 145 | C146: 133741565 | D146: =LOOKUP(A146,Data!A$21:A$4869,Data!G$21:G$4869) -> 133741998 | E146: -433
A147: 1887 | B147: 146 | C147: 134669830 | D147: =LOOKUP(A147,Data!A$21:A$4869,Data!G$21:G$4869) -> 134670510 | E147: -680
A148: 1900 | B148: 147 | C148: 135598095 | D148: =LOOKUP(A148,Data!A$21:A$4869,Data!G$21:G$4869) -> 135599022 | E148: -927
A149: 1913 | B149: 148 | C149: 136526360 | D149: =LOOKUP(A149,Data!A$21:A$4869,Data!G$21:G$4869) -> 136525116 | E149: 1244
A150: 1926 | B150: 149 | C150: 137454625 | D150: =LOOKUP(A150,Data!A$21:A$4869,Data!G$21:G$4869) -> 137453628 | E150: 997
A151: 1939 | B151: 150 | C151: 138382890 | D151: =LOOKUP(A151,Data!A$21:A$4869,Data!G$21:G$4869) -> 138382140 | E151: 750
A152: 1952 | B152: 151 | C152: 139311155 | D152: =LOOKUP(A152,Data!A$21:A$4869,Data!G$21:G$4869) -> 139310652 | E152: 503
A153: 1965 | B153: 152 | C153: 140239420 | D153: =LOOKUP(A153,Data!A$21:A$4869,Data!G$21:G$4869) -> 140239164 | E153: 256
A154: 1978 | B154: 153 | C154: 141167685 | D154: =LOOKUP(A154,Data!A$21:A$4869,Data!G$21:G$4869) -> 141167676 | E154: 9
A155: 1991 | B155: 154 | C155: 142095950 | D155: =LOOKUP(A155,Data!A$21:A$4869,Data!G$21:G$4869) -> 142096188 | E155: -238
A156: 2004 | B156: 155 | C156: 143024215 | D156: =LOOKUP(A156,Data!A$21:A$4869,Data!G$21:G$4869) -> 143024700 | E156: -485
A157: 2017 | B157: 156 | C157: 143952480 | D157: =LOOKUP(A157,Data!A$21:A$4869,Data!G$21:G$4869) -> 143953212 | E157: -732
A158: 2030 | B158: 157 | C158: 144880745 | D158: =LOOKUP(A158,Data!A$21:A$4869,Data!G$21:G$4869) -> 144881724 | E158: -979
A159: 2043 | B159: 158 | C159: 145809010 | D159: =LOOKUP(A159,Data!A$21:A$4869,Data!G$21:G$4869) -> 145807818 | E159: 1192
A160: 2056 | B160: 159 | C160: 146737275 | D160: =LOOKUP(A160,Data!A$21:A$4869,Data!G$21:G$4869) -> 146736330 | E160: 945
A161: 2069 | B161: 160 | C161: 147665540 | D161: =LOOKUP(A161,Data!A$21:A$4869,Data!G$21:G$4869) -> 147664842 | E161: 698
A162: 2082 | B162: 161 | C162: 148593805 | D162: =LOOKUP(A162,Data!A$21:A$4869,Data!G$21:G$4869) -> 148593354 | E162: 451
A163: 2095 | B163: 162 | C163: 149522070 | D163: =LOOKUP(A163,Data!A$21:A$4869,Data!G$21:G$4869) -> 149521866 | E163: 204
A164: 2108 | B164: 163 | C164: 150450335 | D164: =LOOKUP(A164,Data!A$21:A$4869,Data!G$21:G$4869) -> 150450378 | E164: -43
A165: 2121 | B165: 164 | C165: 151378600 | D165: =LOOKUP(A165,Data!A$21:A$4869,Data!G$21:G$4869) -> 151378890 | E165: -290
A166: 2134 | B166: 165 | C166: 152306865 | D166: =LOOKUP(A166,Data!A$21:A$4869,Data!G$21:G$4869) -> 152307402 | E166: -537
A167: 2147 | B167: 166 | C167: 153235130 | D167: =LOOKUP(A167,Data!A$21:A$4869,Data!G$21:G$4869) -> 153235914 | E167: -784
A168: 2160 | B168: 167 | C168: 154163395 | D168: =LOOKUP(A168,Data!A$21:A$4869,Data!G$21:G$4869) -> 154164426 | E168: -1031
A169: 2173 | B169: 168 | C169: 155091660 | D169: =LOOKUP(A169,Data!A$21:A$4869,Data!G$21:G$4869) -> 155090520 | E169: 1140
A170: 2186 | B170: 169 | C170: 156019925 | D170: =LOOKUP(A170,Data!A$21:A$4869,Data!G$21:G$4869) -> 156019032 | E170: 893
A171: 2199 | B171: 170 | C171: 156948190 | D171: =LOOKUP(A171,Data!A$21:A$4869,Data!G$21:G$4869) -> 156947544 | E171: 646
A172: 2212 | B172: 171 | C172: 157876455 | D172: =LOOKUP(A172,Data!A$21:A$4869,Data!G$21:G$4869) -> 157876056 | E172: 399
A173: 2225 | B173: 172 | C173: 158804720 | D173: =LOOKUP(A173,Data!A$21:A$4869,Data!G$21:G$4869) -> 158804568 | E173: 152
A174: 2238 | B174: 173 | C174: 159732985 | D174: =LOOKUP(A174,Data!A$21:A$4869,Data!G$21:G$4869) -> 159733080 | E174: -95
A175: 2251 | B175: 174 | C175: 160661250 | D175: =LOOKUP(A175,Data!A$21:A$4869,Data!G$21:G$4869) -> 160661592 | E175: -342
A176: 2264 | B176: 175 | C176: 161589515 | D176: =LOOKUP(A176,Data!A$21:A$4869,Data!G$21:G$4869) -> 161590104 | E176: -589
A177: 2277 | B177: 176 | C177: 162517780 | D177: =LOOKUP(A177,Data!A$21:A$4869,Data!G$21:G$4869) -> 162518616 | E177: -836
A178: 2290 | B178: 177 | C178: 163446045 | D178: =LOOKUP(A178,Data!A$21:A$4869,Data!G$21:G$4869) -> 163447128 | E178: -1083
A179: 2303 | B179: 178 | C179: 164374310 | D179: =LOOKUP(A179,Data!A$21:A$4869,Data!G$21:G$4869) -> 164373222 | E179: 1088
A180: 2316 | B180: 179 | C180: 165302575 | D180: =LOOKUP(A180,Data!A$21:A$4869,Data!G$21:G$4869) -> 165301734 | E180: 841
A181: 2329 | B181: 180 | C181: 166230840 | D181: =LOOKUP(A181,Data!A$21:A$4869,Data!G$21:G$4869) -> 166230246 | E181: 594
A182: 2342 | B182: 181 | C182: 167159105 | D182: =LOOKUP(A182,Data!A$21:A$4869,Data!G$21:G$4869) -> 167158758 | E182: 347
A183: 2355 | B183: 182 | C183: 168087370 | D183: =LOOKUP(A183,Data!A$21:A$4869,Data!G$21:G$4869) -> 168087270 | E183: 100
A184: 2368 | B184: 183 | C184: 169015635 | D184: =LOOKUP(A184,Data!A$21:A$4869,Data!G$21:G$4869) -> 169015782 | E184: -147
A185: 2381 | B185: 184 | C185: 169943900 | D185: =LOOKUP(A185,Data!A$21:A$4869,Data!G$21:G$4869) -> 169944294 | E185: -394
A186: 2394 | B186: 185 | C186: 170872165 | D186: =LOOKUP(A186,Data!A$21:A$4869,Data!G$21:G$4869) -> 170872806 | E186: -641
A187: 2407 | B187: 186 | C187: 171800430 | D187: =LOOKUP(A187,Data!A$21:A$4869,Data!G$21:G$4869) -> 171801318 | E187: -888
A188: 2420 | B188: 187 | C188: 172728695 | D188: =LOOKUP(A188,Data!A$21:A$4869,Data!G$21:G$4869) -> 172729830 | E188: -1135
A189: 2433 | B189: 188 | C189: 173656960 | D189: =LOOKUP(A189,Data!A$21:A$4869,Data!G$21:G$4869) -> 173655924 | E189: 1036
A190: 2446 | B190: 189 | C190: 174585225 | D190: =LOOKUP(A190,Data!A$21:A$4869,Data!G$21:G$4869) -> 174584436 | E190: 789
A191: 2459 | B191: 190 | C191: 175513490 | D191: =LOOKUP(A191,Data!A$21:A$4869,Data!G$21:G$4869) -> 175512948 | E191: 542
A192: 2472 | B192: 191 | C192: 176441755 | D192: =LOOKUP(A192,Data!A$21:A$4869,Data!G$21:G$4869) -> 176441460 | E192: 295
A193: 2485 | B193: 192 | C193: 177370020 | D193: =LOOKUP(A193,Data!A$21:A$4869,Data!G$21:G$4869) -> 177369972 | E193: 48
A194: 2498 | B194: 193 | C194: =(A194-1)*PPM -> 178298285 | D194: =LOOKUP(A194,Data!A$21:A$4869,Data!G$21:G$4869) -> 178298484 | E194: =C194-D194 -> -199
A195: =A194+13 -> 2511 | B195: =B194+1 -> 194 | C195: 179226550 | D195: =LOOKUP(A195,Data!A$21:A$4869,Data!G$21:G$4869) -> 179226996 | E195: -446
A196: 2524 | B196: 195 | C196: 180154815 | D196: =LOOKUP(A196,Data!A$21:A$4869,Data!G$21:G$4869) -> 180155508 | E196: -693
A197: 2537 | B197: 196 | C197: 181083080 | D197: =LOOKUP(A197,Data!A$21:A$4869,Data!G$21:G$4869) -> 181084020 | E197: -940
A198: 2550 | B198: 197 | C198: 182011345 | D198: =LOOKUP(A198,Data!A$21:A$4869,Data!G$21:G$4869) -> 182010114 | E198: 1231
A199: 2563 | B199: 198 | C199: 182939610 | D199: =LOOKUP(A199,Data!A$21:A$4869,Data!G$21:G$4869) -> 182938626 | E199: 984
A200: 2576 | B200: 199 | C200: 183867875 | D200: =LOOKUP(A200,Data!A$21:A$4869,Data!G$21:G$4869) -> 183867138 | E200: 737
... 174 more rows

Sheet Zoom
A1: 0 | B1: = Current Zoom Level
A2: Level | B2: Months | C2: MajorTick | D2: MinorTick | E2: Shift | F2: Connect | G2: Years | H2: YearsMajor | I2: YearsMinor
A3: =ROW()-3 -> 0 | B3: =2*MPC -> 4836 | C3: 186 | D3: 93 | F3: FALSE | G3: =B3/13 -> 372 | H3: 12 | I3: 3
A4: 1 | B4: =B3/2 -> 2418 | C4: =C3/2 -> 93 | D4: 31 | E4: =B5 -> 1209 | F4: FALSE | G4: 186 | H4: 6 | I4: 3
A5: 2 | B5: =B4/2 -> 1209 | C5: 65 | D5: 13 | E5: 416 | F5: FALSE | G5: 93 | H5: 2 | I5: 1
A6: 3 | B6: 416 | C6: 13 | D6: 13 | E6: 208 | F6: FALSE | G6: 32 | H6: 1 | I6: 1
A7: 4 | B7: 208 | C7: 13 | D7: 13 | E7: 104 | F7: TRUE | G7: 16 | H7: 1 | I7: 1
A8: 5 | B8: 104 | C8: 13 | D8: 1 | E8: 52 | F8: TRUE | G8: 8 | H8: 1 | I8: =1/13 -> 0.07692307692
A9: 6 | B9: =B8/2 -> 52 | C9: 1 | D9: 1 | E9: 26 | F9: TRUE | G9: 4 | H9: 1 | I9: =1/13 -> 0.07692307692
A10: 7 | B10: 26 | C10: 1 | D10: 1 | E10: =B11 -> 13 | F10: TRUE | G10: 2 | H10: 1 | I10: =1/13 -> 0.07692307692
A11: 8 | B11: =B10/2 -> 13 | C11: 1 | D11: 1 | E11: 13 | F11: TRUE | G11: 1 | H11: 1 | I11: =1/13 -> 0.07692307692

Sheet Labels
A1: Lunar Year | B1: Hours | C1: ="Span "&B2-B27&"h" -> Span 75h
A2: 373 | B2: 48
A3: =A2 -> 373 | B3: =B2-3 -> 45
A4: =A3 -> 373 | B4: =B3-3 -> 42
A5: =A4 -> 373 | B5: 39
A6: =A5 -> 373 | B6: 36
A7: 373 | B7: 33
A8: 373 | B8: 30
A9: 373 | B9: 27
A10: 373 | B10: 24
A11: 373 | B11: 21
A12: 373 | B12: 18
A13: 373 | B13: 15
A14: 373 | B14: 12
A15: 373 | B15: 9
A16: =A15 -> 373 | B16: =B15-3 -> 6
A17: 373 | B17: 3
A18: 373 | B18: 0
A19: 373 | B19: -3
A20: 373 | B20: -6
A21: 373 | B21: -9
A22: 373 | B22: -12
A23: 373 | B23: -15
A24: 373 | B24: -18
A25: 373 | B25: -21
A26: 373 | B26: -24
A27: 373 | B27: -27
